Document Date,Purchase Order No,Line Item No,Supplier ID,Supplier Name,Pro Class,Pro Class Description,Description of Goods (Purpose of expenditure look up),Service/Department   (SAP Hierarchy Position),Expense Area (cost centre desc), Net Order Value Over 5000.00 (line item value shown here) ,GL Code,Cost Centre/WBS
04/04/2022,ZAV705443,1,35,CBC Computer Systems Ltd,270000,Information Communication Technology  ,Information and Communications Technology,Corporate and Support Services,IT AVA Non - SLA," 9,750.00 ",402001,13001
04/04/2022,ZAV705443,2,35,CBC Computer Systems Ltd,270000,Information Communication Technology  ,Information and Communications Technology,Corporate and Support Services,IT AVA Non - SLA, 585.00 ,402001,13001
26/04/2022,ZAV706582,1,4512,Redstor Limited,270000,Information Communication Technology  ,Information and Communications Technology,Corporate and Support Services,IT AVA Service," 13,440.00 ",402002,11417
05/05/2022,ZAV707143,1,1162,RM Education plc,181800,Environmental Services Technical Equipment ,Furniture and Equipment,Corporate and Support Services,IT AVA Service," 14,636.00 ",400110,11417
26/05/2022,ZAV708260,1,35,CBC Computer Systems Ltd,270000,Information Communication Technology  ,Information and Communications Technology,Corporate and Support Services,IT AVA Non - SLA," 6,435.00 ",402001,13001
26/05/2022,ZAV708260,2,35,CBC Computer Systems Ltd,270000,Information Communication Technology  ,Information and Communications Technology,Corporate and Support Services,IT AVA Non - SLA, 473.00 ,402001,13001
23/06/2022,ZAV709384,1,15171,Intec Microsystems,210000,Furniture & Soft Furnishings  ,Furniture and Equipment,Corporate and Support Services,IT AVA Non - SLA," 3,940.80 ",400105,13001
23/06/2022,ZAV709384,2,15171,Intec Microsystems,210000,Furniture & Soft Furnishings  ,Furniture and Equipment,Corporate and Support Services,IT AVA Non - SLA," 1,534.50 ",400105,13001
23/06/2022,ZAV709384,3,15171,Intec Microsystems,210000,Furniture & Soft Furnishings  ,Furniture and Equipment,Corporate and Support Services,IT AVA Non - SLA, 936.64 ,400105,13001
23/06/2022,ZAV709384,4,15171,Intec Microsystems,210000,Furniture & Soft Furnishings  ,Furniture and Equipment,Corporate and Support Services,IT AVA Non - SLA, 149.48 ,400105,13001
23/06/2022,ZAV709384,5,15171,Intec Microsystems,210000,Furniture & Soft Furnishings  ,Furniture and Equipment,Corporate and Support Services,IT AVA Non - SLA, 5.00 ,400105,13001
30/06/2022,ZAV709729,1,12351,Getech,270000,Information Communication Technology  ,Information and Communications Technology,Corporate and Support Services,IT AVA Non - SLA," 4,000.00 ",402001,13001
30/06/2022,ZAV709729,2,12351,Getech,270000,Information Communication Technology  ,Information and Communications Technology,Corporate and Support Services,IT AVA Non - SLA, 480.00 ,402001,13001
30/06/2022,ZAV709729,3,12351,Getech,270000,Information Communication Technology  ,Information and Communications Technology,Corporate and Support Services,IT AVA Non - SLA, 160.00 ,402001,13001
30/06/2022,ZAV709729,4,12351,Getech,270000,Information Communication Technology  ,Information and Communications Technology,Corporate and Support Services,IT AVA Non - SLA, 864.00 ,402001,13001
30/06/2022,ZAV709729,5,12351,Getech,270000,Information Communication Technology  ,Information and Communications Technology,Corporate and Support Services,IT AVA Non - SLA, 930.00 ,402001,13001
13/04/2022,ZES706080,1,15110,WCL (UK) Ltd T/A Everything IC,270000,Information Communication Technology  ,Information and Communications Technology,Corporate and Support Services,IT Microsoft," 252,000.00 ",402001,13091
13/04/2022,ZES706080,2,15110,WCL (UK) Ltd T/A Everything IC,270000,Information Communication Technology  ,Information and Communications Technology,Corporate and Support Services,IT Microsoft," 5,600.00 ",402001,13091
13/04/2022,ZES706080,3,15110,WCL (UK) Ltd T/A Everything IC,270000,Information Communication Technology  ,Information and Communications Technology,Corporate and Support Services,IT Microsoft," 19,980.00 ",402001,13091
13/04/2022,ZES706080,4,15110,WCL (UK) Ltd T/A Everything IC,270000,Information Communication Technology  ,Information and Communications Technology,Corporate and Support Services,IT Microsoft," 1,600.00 ",402001,13091
11/05/2022,ZES707404,1,544,Phoenix Software Ltd,270000,Information Communication Technology  ,Information and Communications Technology,Corporate and Support Services,IT Microsoft," 4,869.00 ",402010,13091
11/05/2022,ZES707404,2,544,Phoenix Software Ltd,270000,Information Communication Technology  ,Information and Communications Technology,Corporate and Support Services,IT Microsoft," 8,034.00 ",402010,13091
24/05/2022,ZES708138,1,7684,CDW Ltd,320000,Social Community Care Supplies & Services  ,Care Payments,Corporate and Support Services,IT Infrastructure," 24,666.64 ",530356,11324
24/05/2022,ZES708138,2,7684,CDW Ltd,320000,Social Community Care Supplies & Services  ,Care Payments,Corporate and Support Services,IT Infrastructure," 12,999.06 ",530356,11324
24/05/2022,ZES708138,3,7684,CDW Ltd,320000,Social Community Care Supplies & Services  ,Care Payments,Corporate and Support Services,IT Infrastructure," 2,328.08 ",530356,11324
24/05/2022,ZES708138,4,7684,CDW Ltd,320000,Social Community Care Supplies & Services  ,Care Payments,Corporate and Support Services,IT Infrastructure, 360.30 ,530356,11324
24/05/2022,ZES708138,5,7684,CDW Ltd,320000,Social Community Care Supplies & Services  ,Care Payments,Corporate and Support Services,IT Infrastructure," 4,412.32 ",530356,11324
24/05/2022,ZES708138,6,7684,CDW Ltd,320000,Social Community Care Supplies & Services  ,Care Payments,Corporate and Support Services,IT Infrastructure," 2,454.08 ",530356,11324
11/04/2022,ZFC705908,1,8832,Safe and Secure Solutions Ltd,390000,"Works - Construction, Repair & Maintenance  ",Repairs and Maintenance,Services to Place,SPB Operational Est.," 5,500.00 ",200160,11662
09/05/2022,ZFC707258,1,8832,Safe and Secure Solutions Ltd,390000,"Works - Construction, Repair & Maintenance  ",Repairs and Maintenance,Services to Place,SPB Operational Est.," 5,475.00 ",200160,11662
16/05/2022,ZFC707636,1,4482,Waste Solutions SK Ltd,182000,Environmental Services Waste Management ,Waste Management,Services to Place,SPB Operational Est.," 47,390.40 ",201804,11662
16/05/2022,ZFC707637,1,3529,Totally Local Company Ltd,240000,Horticultural  ,Grounds Maintenance,Services to Place,SPB Operational Est.," 11,883.60 ",202030,11662
18/05/2022,ZFC707759,1,3529,Totally Local Company Ltd,130000,Cleaning & Janitorial  ,Cleaning,Services to Place,SPB Operational Est.," 873,051.22 ",201602,11662
18/05/2022,ZFC707760,1,3529,Totally Local Company Ltd,240000,Horticultural  ,Grounds Maintenance,Services to Place,SPB Operational Est.," 50,683.42 ",202030,11662
18/05/2022,ZFC707836,1,10897,Three Sixty SHG Ltd,390000,"Works - Construction, Repair & Maintenance  ",Repairs and Maintenance,Services to Place,SPB Operational Est.," 7,000.00 ",200101,11662
23/05/2022,ZFC708007,1,10897,Three Sixty SHG Ltd,192200,Facilities & Management Services Security ,Security,Services to Place,SPB Operational Est.," 23,508.98 ",201206,11662
23/05/2022,ZFC708007,2,10897,Three Sixty SHG Ltd,390000,"Works - Construction, Repair & Maintenance  ",Repairs and Maintenance,Services to Place,SPB Operational Est.," 61,070.45 ",200106,11662
23/05/2022,ZFC708007,3,10897,Three Sixty SHG Ltd,390000,"Works - Construction, Repair & Maintenance  ",Repairs and Maintenance,Services to Place,SPB Operational Est.," 52,947.87 ",200159,11662
23/05/2022,ZFC708009,1,10897,Three Sixty SHG Ltd,192200,Facilities & Management Services Security ,Security,Services to Place,SPB Operational Est.," 5,000.00 ",201206,11662
17/05/2022,ZHS707711,1,15163,Energy Biling Ltd,390000,"Works - Construction, Repair & Maintenance  ",Capital Expenditure - Works,#N/A,#N/A," 16,600.00 ",200311,C.00406
26/05/2022,ZHS708229,1,8323,Wilkinson Cowan Partnership Lt,390000,"Works - Construction, Repair & Maintenance  ",Capital Expenditure - Works,#N/A,#N/A," 12,907.06 ",200311,C.10958.002
01/06/2022,ZHS708542,1,8323,Wilkinson Cowan Partnership Lt,390000,"Works - Construction, Repair & Maintenance  ",Capital Expenditure - Works,#N/A,#N/A," 11,782.14 ",200311,C.10945.002
15/06/2022,ZHS709052,1,14462,Oakleaf Surveying Ltd,390000,"Works - Construction, Repair & Maintenance  ",Repairs and Maintenance,#N/A,#N/A," 9,900.00 ",200126,C.00406
25/04/2022,ZMH706554,1,3529,Totally Local Company Ltd,999999,UNCLASSIFIED  ,MISCLASSIFIED? CHECK BEFORE PUBLICATION,Services to People,Moat House PRU," 7,566.12 ",100100,10313
03/05/2022,ZSA707008,1,3664,Main and Main,202000,Financial Services Rents ,Rents,Services to People,Queensway," 10,175.00 ",200700,11695
04/05/2022,ZSA707064,1,11597,Poppies of Stockport,130000,Cleaning & Janitorial  ,Cleaning,Services to People,Redcroft Residential," 7,350.32 ",201602,11675
30/05/2022,ZSA708369,1,13732,SKylight Ltd,111200,Catering Food & Beverages ,Catering Supplies,Services to People,Social Funds - Prog," 6,000.00 ",400422,12705
01/06/2022,ZSA708531,1,9850,Great Places Housing Group,202000,Financial Services Rents ,Rents,Services to People,Millview Respite," 22,781.64 ",200700,11033
20/04/2022,ZSB706331,1,15012,OM Property UK Limited,150000,Consultancy   ,Professional Fees,Services to People,Highfields PRU," 9,900.00 ",401020,10329
20/04/2022,ZSB706335,1,5981,EUROLYNX (TAXIS) LTD,381600,Vehicle Management Hire/Leasing ,Leasing /Transport Hire,Services to People,Highfields PRU," 7,862.80 ",300302,10329
09/05/2022,ZSB707266,1,10897,Three Sixty SHG Ltd,390000,"Works - Construction, Repair & Maintenance  ",Repairs and Maintenance,Services to People,Highfields PRU, 48.40 ,200123,10329
09/05/2022,ZSB707266,2,10897,Three Sixty SHG Ltd,390000,"Works - Construction, Repair & Maintenance  ",Repairs and Maintenance,Services to People,Highfields PRU, 229.90 ,200123,10329
09/05/2022,ZSB707266,3,10897,Three Sixty SHG Ltd,390000,"Works - Construction, Repair & Maintenance  ",Repairs and Maintenance,Services to People,Highfields PRU, 170.78 ,200123,10329
09/05/2022,ZSB707266,4,10897,Three Sixty SHG Ltd,390000,"Works - Construction, Repair & Maintenance  ",Repairs and Maintenance,Services to People,Highfields PRU, 135.10 ,200123,10329
09/05/2022,ZSB707266,5,10897,Three Sixty SHG Ltd,390000,"Works - Construction, Repair & Maintenance  ",Repairs and Maintenance,Services to People,Highfields PRU, 861.00 ,200123,10329
09/05/2022,ZSB707266,6,10897,Three Sixty SHG Ltd,390000,"Works - Construction, Repair & Maintenance  ",Repairs and Maintenance,Services to People,Highfields PRU, 989.23 ,200123,10329
09/05/2022,ZSB707266,7,10897,Three Sixty SHG Ltd,390000,"Works - Construction, Repair & Maintenance  ",Repairs and Maintenance,Services to People,Highfields PRU, 383.73 ,200123,10329
09/05/2022,ZSB707266,8,10897,Three Sixty SHG Ltd,390000,"Works - Construction, Repair & Maintenance  ",Repairs and Maintenance,Services to People,Highfields PRU, 440.00 ,200123,10329
09/05/2022,ZSB707266,9,10897,Three Sixty SHG Ltd,390000,"Works - Construction, Repair & Maintenance  ",Repairs and Maintenance,Services to People,Highfields PRU," 4,000.00 ",200123,10329
09/05/2022,ZSB707266,10,10897,Three Sixty SHG Ltd,390000,"Works - Construction, Repair & Maintenance  ",Repairs and Maintenance,Services to People,Highfields PRU, 240.35 ,200123,10329
09/05/2022,ZSB707266,11,10897,Three Sixty SHG Ltd,390000,"Works - Construction, Repair & Maintenance  ",Repairs and Maintenance,Services to People,Highfields PRU, 148.50 ,200123,10329
09/05/2022,ZSB707266,12,10897,Three Sixty SHG Ltd,390000,"Works - Construction, Repair & Maintenance  ",Repairs and Maintenance,Services to People,Highfields PRU, 111.13 ,200123,10329
09/05/2022,ZSB707266,13,10897,Three Sixty SHG Ltd,390000,"Works - Construction, Repair & Maintenance  ",Repairs and Maintenance,Services to People,Highfields PRU, 63.45 ,200123,10329
09/05/2022,ZSB707266,14,10897,Three Sixty SHG Ltd,390000,"Works - Construction, Repair & Maintenance  ",Repairs and Maintenance,Services to People,Highfields PRU," 1,058.00 ",200123,10329
09/05/2022,ZSB707266,15,10897,Three Sixty SHG Ltd,390000,"Works - Construction, Repair & Maintenance  ",Repairs and Maintenance,Services to People,Highfields PRU, 618.32 ,200123,10329
09/05/2022,ZSB707266,16,10897,Three Sixty SHG Ltd,390000,"Works - Construction, Repair & Maintenance  ",Repairs and Maintenance,Services to People,Highfields PRU, 50.88 ,200123,10329
09/05/2022,ZSB707266,17,10897,Three Sixty SHG Ltd,390000,"Works - Construction, Repair & Maintenance  ",Repairs and Maintenance,Services to People,Highfields PRU, 473.96 ,200123,10329
27/06/2022,ZTR709533,1,9494,Patrol - Parking Charges,200000,Financial Services  ,Fees and Charges,Services to Place,Car Parks Admin," 9,000.00 ",402401,10005
04/04/2022,ZZC705427,1,11190,Social Care Network Solutions,390000,"Works - Construction, Repair & Maintenance  ",Fees and Charges,Services to People,RAA Adoption Count," 38,400.00 ",401017,12957
05/04/2022,ZZC705518,1,7030,MANCHESTER CITY COUNCIL SHARED,320000,Social Community Care Supplies & Services  ,Care Payments,Services to People,FP - Fostering," 10,000.00 ",530322,11441
06/04/2022,ZZC705648,1,11990,LINKUP TRANSLATION LTD,261100,Human Resources Interpretation & Translation ,Professional Fees,Services to People,Incl - S.I.U - Perip," 1,020.75 ",401023,10307
06/04/2022,ZZC705648,2,11990,LINKUP TRANSLATION LTD,261100,Human Resources Interpretation & Translation ,Professional Fees,Services to People,Incl - S.I.U - Perip, 738.96 ,401023,10307
06/04/2022,ZZC705648,3,11990,LINKUP TRANSLATION LTD,261100,Human Resources Interpretation & Translation ,Professional Fees,Services to People,Incl - S.I.U - Perip," 1,006.59 ",401023,10307
06/04/2022,ZZC705648,4,11990,LINKUP TRANSLATION LTD,261100,Human Resources Interpretation & Translation ,Professional Fees,Services to People,Incl - S.I.U - Perip, 414.36 ,401023,10307
06/04/2022,ZZC705648,5,11990,LINKUP TRANSLATION LTD,261100,Human Resources Interpretation & Translation ,Professional Fees,Services to People,Incl - S.I.U - Perip," 1,167.18 ",401023,10307
06/04/2022,ZZC705648,6,11990,LINKUP TRANSLATION LTD,261100,Human Resources Interpretation & Translation ,Professional Fees,Services to People,Incl - S.I.U - Perip, 715.13 ,401023,10307
12/04/2022,ZZC705934,1,2816,The Fostering Network,150000,Consultancy   ,Professional Fees,Services to People,FP - Fostering Staff," 7,689.44 ",401020,11489
12/04/2022,ZZC705940,1,5555,MANCHESTER DEAF CENTRE LTD,261100,Human Resources Interpretation & Translation ,Professional Fees,Services to People,Incl - S.I.U - Perip," 6,909.65 ",401023,10307
20/04/2022,ZZC706303,1,7362,The Heatons Conference Centre,190000,Facilities & Management Services  ,Office Expenses,Services to People,RAA Adoption Count," 6,723.00 ",400705,12957
20/04/2022,ZZC706304,1,1756,CoramBAAF,200000,Financial Services  ,Fees and Charges,Services to People,RAA Adoption Count," 7,410.60 ",402401,12957
20/04/2022,ZZC706305,1,12298,One Education Ltd,999999,Fees and Charges,Fees and Charges,Services to People,RAA - ASF Grant," 5,000.00 ",401035,12968
20/04/2022,ZZC706306,1,12298,One Education Ltd,999999,Fees and Charges,Fees and Charges,Services to People,RAA - ASF Grant," 5,000.00 ",401035,12968
20/04/2022,ZZC706307,1,8766,ADOPTION MATTERS NORTHWEST,999999,Fees and Charges,Fees and Charges,Services to People,RAA - ASF Grant," 9,218.00 ",401035,12968
20/04/2022,ZZC706308,1,12137,TPC Therapy LTD,999999,Fees and Charges,Fees and Charges,Services to People,RAA - ASF Grant," 14,349.17 ",401035,12968
26/04/2022,ZZC706566,1,12298,One Education Ltd,999999,Fees and Charges,Fees and Charges,Services to People,RAA - ASF Grant," 10,000.00 ",401035,12968
26/04/2022,ZZC706567,1,14901,Focus Mental Health,999999,Fees and Charges,Fees and Charges,Services to People,RAA - ASF Grant," 7,500.00 ",401035,12968
26/04/2022,ZZC706568,1,8881,Family Futures CIC,999999,Fees and Charges,Fees and Charges,Services to People,RAA - ASF Grant," 6,880.00 ",401035,12968
26/04/2022,ZZC706569,1,12675,Tiptoes Child Therapy Services,999999,Fees and Charges,Fees and Charges,Services to People,RAA - ASF Grant," 23,480.00 ",401035,12968
26/04/2022,ZZC706577,1,12675,Tiptoes Child Therapy Services,999999,Fees and Charges,Fees and Charges,Services to People,RAA - ASF Grant," 5,000.00 ",401035,12968
26/04/2022,ZZC706578,1,12675,Tiptoes Child Therapy Services,999999,Fees and Charges,Fees and Charges,Services to People,RAA - ASF Grant," 5,000.00 ",401035,12968
26/04/2022,ZZC706602,1,2104,Central Manchester University,150000,Consultancy   ,Professional Fees,Services to People,RAA Adoption Count," 113,253.00 ",401020,12957
26/04/2022,ZZC706620,1,12298,One Education Ltd,999999,Fees and Charges,Fees and Charges,Services to People,RAA - ASF Grant," 5,000.00 ",401035,12968
04/05/2022,ZZC707078,1,12675,Tiptoes Child Therapy Services,999999,Fees and Charges,Fees and Charges,Services to People,RAA - ASF Grant," 5,000.00 ",401035,12968
04/05/2022,ZZC707079,1,12675,Tiptoes Child Therapy Services,999999,Fees and Charges,Fees and Charges,Services to People,RAA - ASF Grant," 5,000.00 ",401035,12968
04/05/2022,ZZC707080,1,12646,Child in Mind Ltd,999999,Fees and Charges,Fees and Charges,Services to People,RAA - ASF Grant," 6,360.00 ",401035,12968
04/05/2022,ZZC707081,1,11242,Gateway Psychology Ltd,999999,Fees and Charges,Fees and Charges,Services to People,RAA - ASF Grant," 9,975.00 ",401035,12968
06/05/2022,ZZC707244,1,12675,Tiptoes Child Therapy Services,999999,Fees and Charges,Fees and Charges,Services to People,RAA - ASF Grant," 5,000.00 ",401035,12968
06/05/2022,ZZC707245,1,12675,Tiptoes Child Therapy Services,999999,Fees and Charges,Fees and Charges,Services to People,RAA - ASF Grant," 5,000.00 ",401035,12968
06/05/2022,ZZC707246,1,12675,Tiptoes Child Therapy Services,999999,Fees and Charges,Fees and Charges,Services to People,RAA - ASF Grant," 5,000.00 ",401035,12968
06/05/2022,ZZC707247,1,12675,Tiptoes Child Therapy Services,999999,Fees and Charges,Fees and Charges,Services to People,RAA - ASF Grant," 5,000.00 ",401035,12968
06/05/2022,ZZC707248,1,12723,Chrysalis Associates Ltd,999999,Fees and Charges,Fees and Charges,Services to People,RAA - ASF Grant," 5,000.00 ",401035,12968
10/05/2022,ZZC707353,1,12675,Tiptoes Child Therapy Services,150000,Consultancy   ,Professional Fees,Services to People,FP - Special Guardia," 17,220.00 ",401007,13012
10/05/2022,ZZC707356,1,12298,One Education Ltd,150000,Consultancy   ,Professional Fees,Services to People,FP - Special Guardia," 5,000.00 ",401007,13012
11/05/2022,ZZC707389,1,12298,One Education Ltd,999999,Fees and Charges,Fees and Charges,Services to People,RAA - ASF Grant," 5,000.00 ",401035,12968
11/05/2022,ZZC707393,1,12298,One Education Ltd,999999,Fees and Charges,Fees and Charges,Services to People,RAA - ASF Grant," 10,000.00 ",401035,12968
11/05/2022,ZZC707394,1,12298,One Education Ltd,999999,Fees and Charges,Fees and Charges,Services to People,RAA - ASF Grant," 5,000.00 ",401035,12968
11/05/2022,ZZC707406,1,12675,Tiptoes Child Therapy Services,150000,Consultancy   ,Professional Fees,Services to People,FP - Special Guardia," 16,940.00 ",401007,13012
12/05/2022,ZZC707463,1,5555,MANCHESTER DEAF CENTRE LTD,261100,Human Resources Interpretation & Translation ,Professional Fees,Services to People,Incl - S.I.U - Perip," 5,718.60 ",401023,10307
17/05/2022,ZZC707667,1,13510,Children's Therapy Solutions,999999,Fees and Charges,Fees and Charges,Services to People,RAA - ASF Grant," 9,668.25 ",401035,12968
18/05/2022,ZZC707761,1,15153,Curiosity Project,999999,Fees and Charges,Fees and Charges,Services to People,RAA - ASF Grant," 7,140.00 ",401035,12968
23/05/2022,ZZC707997,1,7030,MANCHESTER CITY COUNCIL SHARED,190000,Facilities & Management Services  ,Office Expenses,Services to People,RAA Adoption Count," 5,000.00 ",400700,12957
23/05/2022,ZZC707998,1,12298,One Education Ltd,999999,Fees and Charges,Fees and Charges,Services to People,RAA - ASF Grant," 5,000.00 ",401035,12968
26/05/2022,ZZC708236,1,14902,Confidentials,190000,Facilities & Management Services  ,Office Expenses,Services to People,RAA Adoption Count," 5,000.00 ",400700,12957
26/05/2022,ZZC708238,1,4463,Reach Publishing Serv (MEN),190000,Facilities & Management Services  ,Office Expenses,Services to People,RAA Adoption Count," 10,000.00 ",400700,12957
26/05/2022,ZZC708243,1,13335,Family Action,150000,Consultancy   ,Professional Fees,Services to People,RAA Adoption Count," 49,999.99 ",401020,12957
27/05/2022,ZZC708325,1,12298,One Education Ltd,999999,Fees and Charges,Fees and Charges,Services to People,RAA - ASF Grant," 5,000.00 ",401035,12968
27/05/2022,ZZC708333,1,11242,Gateway Psychology Ltd,999999,Fees and Charges,Fees and Charges,Services to People,RAA - ASF Grant," 8,572.50 ",401035,12968
30/05/2022,ZZC708356,1,12298,One Education Ltd,999999,Fees and Charges,Fees and Charges,Services to People,RAA - ASF Grant," 10,860.00 ",401035,12968
30/05/2022,ZZC708444,1,12298,One Education Ltd,999999,Fees and Charges,Fees and Charges,Services to People,RAA - ASF Grant," 5,000.00 ",401035,12968
30/05/2022,ZZC708446,1,12793,Aspire Therapy Services Ltd,999999,Fees and Charges,Fees and Charges,Services to People,RAA - ASF Grant," 5,250.00 ",401035,12968
30/05/2022,ZZC708447,1,8766,ADOPTION MATTERS NORTHWEST,999999,Fees and Charges,Fees and Charges,Services to People,RAA - ASF Grant," 9,998.23 ",401035,12968
31/05/2022,ZZC708476,1,11417,Parents and Children Together,200000,Financial Services  ,Fees and Charges,Services to People,RAA Adoption Count," 16,500.00 ",402401,12957
31/05/2022,ZZC708478,1,12298,One Education Ltd,999999,Fees and Charges,Fees and Charges,Services to People,RAA - ASF Grant," 5,000.00 ",401035,12968
07/06/2022,ZZC708624,1,14063,TSOM Group,261500,Human Resources Training & Conferences ,Fees and Charges,Services to People,GO/HG Client spend," 19,240.00 ",401024,13147
08/06/2022,ZZC708703,1,1427,Stagecoach Services Ltd,261600,Human Resources Travel & Subsistence ,Travelling Expenses,Services to People,SF Senior Management," 10,000.00 ",300500,11486
13/06/2022,ZZC708945,1,5555,MANCHESTER DEAF CENTRE LTD,261100,Human Resources Interpretation & Translation ,Professional Fees,Services to People,Incl - S.I.U - Perip," 7,115.42 ",401023,10307
15/06/2022,ZZC709067,1,12675,Tiptoes Child Therapy Services,999999,Fees and Charges,Fees and Charges,Services to People,RAA - ASF Grant," 10,000.00 ",401035,12968
15/06/2022,ZZC709070,1,12298,One Education Ltd,999999,Fees and Charges,Fees and Charges,Services to People,RAA - ASF Grant," 5,000.00 ",401035,12968
15/06/2022,ZZC709073,1,12298,One Education Ltd,999999,Fees and Charges,Fees and Charges,Services to People,RAA - ASF Grant," 5,000.00 ",401035,12968
16/06/2022,ZZC709101,1,12723,Chrysalis Associates Ltd,999999,Fees and Charges,Fees and Charges,Services to People,RAA - ASF Grant," 5,000.00 ",401035,12968
16/06/2022,ZZC709137,1,12675,Tiptoes Child Therapy Services,999999,Fees and Charges,Fees and Charges,Services to People,RAA - ASF Grant," 5,000.00 ",401035,12968
27/06/2022,ZZC709486,1,12675,Tiptoes Child Therapy Services,999999,Fees and Charges,Fees and Charges,Services to People,RAA - ASF Grant," 5,000.00 ",401035,12968
27/06/2022,ZZC709487,1,12137,TPC Therapy LTD,999999,Fees and Charges,Fees and Charges,Services to People,RAA - ASF Grant," 9,570.00 ",401035,12968
27/06/2022,ZZC709488,1,12675,Tiptoes Child Therapy Services,999999,Fees and Charges,Fees and Charges,Services to People,RAA - ASF Grant," 5,000.00 ",401035,12968
29/06/2022,ZZC709671,1,8766,ADOPTION MATTERS NORTHWEST,999999,Fees and Charges,Fees and Charges,Services to People,RAA - ASF Grant," 8,817.00 ",401035,12968
01/04/2022,ZZH705376,1,14951,TERMSTALL LTD,240000,Horticultural  ,Grounds Maintenance,Services to Place,Play," 5,450.00 ",202032,11267
01/04/2022,ZZH705383,1,3290,Royal Mail,300000,Mail Services�  ,Office Expenses,Corporate and Support Services,Mailroom Service," 10,000.00 ",400711,11152
01/04/2022,ZZH705384,1,10841,Whistl UK Limited,300000,Mail Services�  ,Office Expenses,Corporate and Support Services,Mailroom Service," 40,000.00 ",400711,11152
01/04/2022,ZZH705385,1,2374,Mac Roofing & Contracting L,390000,"Works - Construction, Repair & Maintenance  ",Repairs and Maintenance,#N/A,#N/A," 197,173.11 ",200123,C.10293.194
01/04/2022,ZZH705386,1,2374,Mac Roofing & Contracting L,390000,"Works - Construction, Repair & Maintenance  ",Repairs and Maintenance,#N/A,#N/A," 295,967.75 ",200123,C.10393.109
01/04/2022,ZZH705403,1,3707,Salford City Council/Finance,201100,Financial Services Audit ,Professional Fees,Corporate and Support Services,Audit & Risk," 9,500.00 ",401003,12874
01/04/2022,ZZH705404,1,6748,GEORGE COX & SONS LTD,390000,Supplies and services,Supplies and services,#N/A,#N/A," 12,500.00 ",401600,C.01249.203
01/04/2022,ZZH705418,1,10337,SIGNPOST STOCKPORT for CARERS,150000,Consultancy   ,Professional Fees,Services to People,Carers Support Serv," 200,000.00 ",401020,13178
01/04/2022,ZZH705419,1,1104,Age UK Stockport,150000,Consultancy   ,Professional Fees,Services to People,Home Support," 340,000.00 ",401020,13176
01/04/2022,ZZH705420,1,10338,STOCKPORT CAR SCHEMES,150000,Consultancy   ,Professional Fees,Services to People,Transport Support," 140,000.00 ",401020,13177
04/04/2022,ZZH705448,1,11466,High Peak School Ltd,261500,Human Resources Training & Conferences ,Fees and Charges,Services to People,SEN Independent Sch," 46,816.00 ",401024,10372
04/04/2022,ZZH705457,1,11466,High Peak School Ltd,261500,Human Resources Training & Conferences ,Fees and Charges,Services to People,SEN Independent Sch," 56,506.00 ",401024,10372
04/04/2022,ZZH705460,1,3529,Totally Local Company Ltd,182000,Environmental Services Waste Management ,Waste Management,Services to Place,Pymnt to contctr R+R," 8,534,831.00 ",201804,10856
04/04/2022,ZZH705460,2,3529,Totally Local Company Ltd,181600,Environmental Services Street Cleansing ,Cleaning,Services to Place,Contrct P-St Cleansg," 2,983,540.00 ",201606,10881
04/04/2022,ZZH705460,3,3529,Totally Local Company Ltd,181600,Environmental Services Street Cleansing ,Cleaning,Services to Place,Drainage Works," 257,837.00 ",201606,12681
04/04/2022,ZZH705460,4,3529,Totally Local Company Ltd,230000,Highway Equipment & Materials�   ,Highways Maintenance,Services to Place,Gritting," 388,973.00 ",202056,12033
04/04/2022,ZZH705460,5,3529,Totally Local Company Ltd,240000,Horticultural  ,Grounds Maintenance,Services to Place,SSK Contract SLA," 2,142,501.00 ",202030,11166
04/04/2022,ZZH705460,6,3529,Totally Local Company Ltd,230000,Highway Equipment & Materials�   ,Highways Maintenance,Services to Place,SLA Safety Detect R," 1,675,617.00 ",202050,11984
04/04/2022,ZZH705460,7,3529,Totally Local Company Ltd,350000,Street & Traffic Management  ,Fixtures and Fittings,Services to Place,SLA Street Lighting," 988,203.00 ",201202,12026
04/04/2022,ZZH705460,8,3529,Totally Local Company Ltd,240000,Horticultural  ,Grounds Maintenance,Services to Place,SSK Contract SLA," 177,334.00 ",202030,11166
04/04/2022,ZZH705460,9,3529,Totally Local Company Ltd,240000,Horticultural  ,Grounds Maintenance,Services to Place,Arboricult Contr SSK," 389,076.00 ",202030,12821
04/04/2022,ZZH705460,10,3529,Totally Local Company Ltd,390000,"Works - Construction, Repair & Maintenance  ",Capital Expenditure - Works,#N/A,#N/A, 0.12 ,200304,C.00712.203
04/04/2022,ZZH705460,11,3529,Totally Local Company Ltd,390000,"Works - Construction, Repair & Maintenance  ",Capital Expenditure - Works,#N/A,#N/A, 0.12 ,200304,C.00705.203
04/04/2022,ZZH705460,12,3529,Totally Local Company Ltd,202000,Financial Services Rents ,Rents,Services to Place,Operational Support," 69,000.00 ",200700,10924
04/04/2022,ZZH705460,13,3529,Totally Local Company Ltd,202000,Financial Services Rents ,Rents,Services to Place,Operational Support," 47,448.00 ",200700,10924
05/04/2022,ZZH705468,1,7083,E-ON,370000,Utilities   ,Utilities,Services to Place,St Peter's Square," 8,500.00 ",200510,11979
05/04/2022,ZZH705479,1,11897,SENSE CAS FINANCE TEAM,320000,Social Community Care Supplies & Services  ,Care Payments,Services to People,DP - Respite," 15,849.60 ",530335,11513
05/04/2022,ZZH705488,1,11897,SENSE CAS FINANCE TEAM,320000,Social Community Care Supplies & Services  ,Care Payments,Services to People,DP - Respite," 10,500.00 ",530335,11513
05/04/2022,ZZH705490,1,12180,Acorn Care and Education,261500,Human Resources Training & Conferences ,Fees and Charges,Services to People,SEN Independent Sch," 37,199.83 ",401024,10372
05/04/2022,ZZH705491,1,12180,Acorn Care and Education,261500,Human Resources Training & Conferences ,Fees and Charges,Services to People,SEN Independent Sch," 37,147.61 ",401024,10372
05/04/2022,ZZH705492,1,12180,Acorn Care and Education,261500,Human Resources Training & Conferences ,Fees and Charges,Services to People,SEN Independent Sch," 48,901.44 ",401024,10372
05/04/2022,ZZH705493,1,12180,Acorn Care and Education,261500,Human Resources Training & Conferences ,Fees and Charges,Services to People,SEN Independent Sch," 37,147.61 ",401024,10372
05/04/2022,ZZH705496,1,1722,The Together Trust Centre,261500,Human Resources Training & Conferences ,Fees and Charges,Services to People,SEN Independent Sch," 44,925.93 ",401024,10372
05/04/2022,ZZH705497,1,1722,The Together Trust Centre,261500,Human Resources Training & Conferences ,Fees and Charges,Services to People,SEN Independent Sch," 43,700.10 ",401024,10372
05/04/2022,ZZH705498,1,1722,The Together Trust Centre,261500,Human Resources Training & Conferences ,Fees and Charges,Services to People,SEN Independent Sch," 47,500.02 ",401024,10372
05/04/2022,ZZH705499,1,1722,The Together Trust Centre,261500,Human Resources Training & Conferences ,Fees and Charges,Services to People,SEN Independent Sch," 41,274.84 ",401024,10372
05/04/2022,ZZH705500,1,14243,Keys PCE Ltd,261500,Human Resources Training & Conferences ,Fees and Charges,Services to People,SEN Independent Sch," 40,950.00 ",401024,10372
05/04/2022,ZZH705501,1,14243,Keys PCE Ltd,261500,Human Resources Training & Conferences ,Fees and Charges,Services to People,SEN Independent Sch," 40,950.00 ",401024,10372
05/04/2022,ZZH705502,1,14243,Keys PCE Ltd,261500,Human Resources Training & Conferences ,Fees and Charges,Services to People,SEN Independent Sch," 40,950.00 ",401024,10372
05/04/2022,ZZH705503,1,14243,Keys PCE Ltd,261500,Human Resources Training & Conferences ,Fees and Charges,Services to People,SEN Independent Sch," 40,950.00 ",401024,10372
05/04/2022,ZZH705504,1,14243,Keys PCE Ltd,261500,Human Resources Training & Conferences ,Fees and Charges,Services to People,SEN Independent Sch," 40,950.00 ",401024,10372
05/04/2022,ZZH705505,1,14243,Keys PCE Ltd,261500,Human Resources Training & Conferences ,Fees and Charges,Services to People,SEN Independent Sch," 40,950.00 ",401024,10372
05/04/2022,ZZH705506,1,14243,Keys PCE Ltd,261500,Human Resources Training & Conferences ,Fees and Charges,Services to People,SEN Independent Sch," 45,240.00 ",401024,10372
05/04/2022,ZZH705507,1,4083,Hulme Hall School,261500,Human Resources Training & Conferences ,Fees and Charges,Services to People,SEN Independent Sch," 10,881.00 ",401024,10372
05/04/2022,ZZH705508,1,4083,Hulme Hall School,261500,Human Resources Training & Conferences ,Fees and Charges,Services to People,SEN Independent Sch," 8,649.00 ",401024,10372
05/04/2022,ZZH705509,1,4083,Hulme Hall School,261500,Human Resources Training & Conferences ,Fees and Charges,Services to People,SEN Independent Sch," 14,481.00 ",401024,10372
05/04/2022,ZZH705510,1,12269,PENARTH GROUP,261500,Human Resources Training & Conferences ,Fees and Charges,Services to People,SEN Independent Sch," 38,000.00 ",401024,10372
05/04/2022,ZZH705511,1,12269,PENARTH GROUP,261500,Human Resources Training & Conferences ,Fees and Charges,Services to People,SEN Independent Sch," 38,000.00 ",401024,10372
05/04/2022,ZZH705512,1,12269,PENARTH GROUP,261500,Human Resources Training & Conferences ,Fees and Charges,Services to People,SEN Independent Sch," 38,000.00 ",401024,10372
05/04/2022,ZZH705513,1,12269,PENARTH GROUP,261500,Human Resources Training & Conferences ,Fees and Charges,Services to People,SEN Independent Sch," 38,000.00 ",401024,10372
05/04/2022,ZZH705514,1,14414,MEADOWS CARE LTD,261500,Human Resources Training & Conferences ,Fees and Charges,Services to People,SEN Independent Sch," 34,000.00 ",401024,10372
05/04/2022,ZZH705515,1,14414,MEADOWS CARE LTD,261500,Human Resources Training & Conferences ,Fees and Charges,Services to People,SEN Independent Sch," 34,010.00 ",401024,10372
05/04/2022,ZZH705516,1,14414,MEADOWS CARE LTD,261500,Human Resources Training & Conferences ,Fees and Charges,Services to People,SEN Independent Sch," 46,540.00 ",401024,10372
05/04/2022,ZZH705517,1,4083,Hulme Hall School,261500,Human Resources Training & Conferences ,Fees and Charges,Services to People,SEN Independent Sch," 13,200.60 ",401024,10372
05/04/2022,ZZH705519,1,11897,SENSE CAS FINANCE TEAM,320000,Social Community Care Supplies & Services  ,Care Payments,Services to People,DP - Respite," 5,148.00 ",530335,11513
05/04/2022,ZZH705520,1,11897,SENSE CAS FINANCE TEAM,320000,Social Community Care Supplies & Services  ,Care Payments,Services to People,DP - Respite," 7,030.40 ",530335,11513
05/04/2022,ZZH705524,1,11897,SENSE CAS FINANCE TEAM,320000,Social Community Care Supplies & Services  ,Care Payments,Services to People,DP - Respite," 6,177.60 ",530335,11513
05/04/2022,ZZH705536,1,11897,SENSE CAS FINANCE TEAM,320000,Social Community Care Supplies & Services  ,Care Payments,Services to People,DP - Respite," 7,555.68 ",530358,11513
05/04/2022,ZZH705539,1,11897,SENSE CAS FINANCE TEAM,320000,Social Community Care Supplies & Services  ,Care Payments,Services to People,DP - Respite," 7,937.28 ",530358,11513
05/04/2022,ZZH705542,1,11897,SENSE CAS FINANCE TEAM,320000,Social Community Care Supplies & Services  ,Care Payments,Services to People,DP - Respite," 7,632.00 ",530358,11513
05/04/2022,ZZH705552,1,11897,SENSE CAS FINANCE TEAM,320000,Social Community Care Supplies & Services  ,Care Payments,Services to People,DP - Respite," 15,000.00 ",530358,11513
05/04/2022,ZZH705553,1,11897,SENSE CAS FINANCE TEAM,320000,Social Community Care Supplies & Services  ,Care Payments,Services to People,DP - Respite," 15,000.00 ",530358,11513
05/04/2022,ZZH705554,1,11897,SENSE CAS FINANCE TEAM,320000,Social Community Care Supplies & Services  ,Care Payments,Services to People,DP - Respite," 7,620.00 ",530358,11513
05/04/2022,ZZH705570,1,561,1919 Taxi and Minibuses,381600,Vehicle Management Hire/Leasing ,Leasing /Transport Hire,Services to People,YOS Non-Staffing," 5,000.00 ",300302,11503
06/04/2022,ZZH705600,1,9159,TRAFFORD MBC,150000,Consultancy   ,Professional Fees,Services to People,Modernisation," 14,472.50 ",401020,11876
06/04/2022,ZZH705602,1,10337,SIGNPOST STOCKPORT for CARERS,190000,Facilities & Management Services  ,Office Expenses,Services to People,Asian Heritage Staff," 7,402.52 ",400705,12774
06/04/2022,ZZH705603,1,13732,SKylight Ltd,#N/A,#N/A,#N/A,Services to People,COVID Winter Grant," 32,200.00 ",500999,13096
06/04/2022,ZZH705613,1,13294,Collective Space,150000,Consultancy   ,Professional Fees,Services to People,CADA grant," 11,824.35 ",401020,13032
06/04/2022,ZZH705635,1,7166,THE DARTINGTON HALL TRUST,150000,Consultancy   ,Professional Fees,Services to People,WD-Staff Dev-Grants," 11,127.02 ",401020,12202
06/04/2022,ZZH705637,1,11539,Bolinda UK Limited,171113,Education Library Books ,Library Equipment,Corporate and Support Services,Library Dev & Res," 2,500.00 ",400202,11328
06/04/2022,ZZH705637,2,11539,Bolinda UK Limited,171113,Education Library Books ,Library Equipment,Corporate and Support Services,Library Dev & Res," 17,462.70 ",400202,11328
06/04/2022,ZZH705637,3,11539,Bolinda UK Limited,171113,Education Library Books ,Library Equipment,Corporate and Support Services,Library Dev & Res," 11,641.80 ",400202,11328
06/04/2022,ZZH705639,1,12188,ST JOHN VIANNEY,261500,Human Resources Training & Conferences ,Fees and Charges,Services to People,SEN NMSS School Fees," 20,000.00 ",401024,12710
06/04/2022,ZZH705640,1,12188,ST JOHN VIANNEY,261500,Human Resources Training & Conferences ,Fees and Charges,Services to People,SEN NMSS School Fees," 12,472.50 ",401024,12710
06/04/2022,ZZH705641,1,12188,ST JOHN VIANNEY,261500,Human Resources Training & Conferences ,Fees and Charges,Services to People,SEN NMSS School Fees," 29,934.00 ",401024,12710
06/04/2022,ZZH705642,1,12188,ST JOHN VIANNEY,261500,Human Resources Training & Conferences ,Fees and Charges,Services to People,SEN NMSS School Fees," 20,000.00 ",401024,12710
06/04/2022,ZZH705643,1,12188,ST JOHN VIANNEY,261500,Human Resources Training & Conferences ,Fees and Charges,Services to People,SEN NMSS School Fees," 12,472.40 ",401024,12710
06/04/2022,ZZH705644,1,12188,ST JOHN VIANNEY,261500,Human Resources Training & Conferences ,Fees and Charges,Services to People,SEN NMSS School Fees," 20,000.00 ",401024,12710
06/04/2022,ZZH705645,1,11861,WARGRAVE HOUSE SCHOOL,261500,Human Resources Training & Conferences ,Fees and Charges,Services to People,SEN NMSS School Fees," 14,456.66 ",401024,12710
06/04/2022,ZZH705646,1,4238,Thomasson Memorial School,170000,Education  ,Third party payments - Public Sector,Services to People,OLA pupils," 37,572.50 ",500304,10371
06/04/2022,ZZH705647,1,9251,Lower Park School,170000,Education  ,Third party payments - Public Sector,Services to People,OLA pupils," 16,001.63 ",500304,10371
06/04/2022,ZZH705650,1,12188,ST JOHN VIANNEY,261500,Human Resources Training & Conferences ,Fees and Charges,Services to People,SEN NMSS School Fees," 17,666.00 ",401024,12710
06/04/2022,ZZH705651,1,12188,ST JOHN VIANNEY,261500,Human Resources Training & Conferences ,Fees and Charges,Services to People,SEN NMSS School Fees," 18,848.00 ",401024,12710
06/04/2022,ZZH705652,1,12188,ST JOHN VIANNEY,261500,Human Resources Training & Conferences ,Fees and Charges,Services to People,SEN NMSS School Fees," 20,000.00 ",401024,12710
06/04/2022,ZZH705653,1,12188,ST JOHN VIANNEY,261500,Human Resources Training & Conferences ,Fees and Charges,Services to People,SEN NMSS School Fees," 20,000.00 ",401024,12710
06/04/2022,ZZH705654,1,12188,ST JOHN VIANNEY,261500,Human Resources Training & Conferences ,Fees and Charges,Services to People,SEN NMSS School Fees," 20,000.00 ",401024,12710
06/04/2022,ZZH705655,1,12188,ST JOHN VIANNEY,261500,Human Resources Training & Conferences ,Fees and Charges,Services to People,SEN NMSS School Fees," 18,849.00 ",401024,12710
06/04/2022,ZZH705656,1,8423,SMS Coaching Limited,261500,Human Resources Training & Conferences ,Fees and Charges,Services to People,SEN Independent Sch," 38,000.00 ",401024,10372
06/04/2022,ZZH705658,1,13553,Cumberland & Westmorland Schoo,261500,Human Resources Training & Conferences ,Fees and Charges,Services to People,SEN Independent Sch," 19,746.03 ",401024,10372
06/04/2022,ZZH705660,1,12367,Beech Hall School,261500,Human Resources Training & Conferences ,Fees and Charges,Services to People,SEN Independent Sch," 37,224.00 ",401024,10372
06/04/2022,ZZH705661,1,12367,Beech Hall School,261500,Human Resources Training & Conferences ,Fees and Charges,Services to People,SEN Independent Sch," 26,640.00 ",401024,10372
06/04/2022,ZZH705662,1,12367,Beech Hall School,261500,Human Resources Training & Conferences ,Fees and Charges,Services to People,SEN Independent Sch," 28,590.00 ",401024,10372
06/04/2022,ZZH705663,1,12367,Beech Hall School,261500,Human Resources Training & Conferences ,Fees and Charges,Services to People,SEN Independent Sch," 26,640.00 ",401024,10372
06/04/2022,ZZH705664,1,12367,Beech Hall School,261500,Human Resources Training & Conferences ,Fees and Charges,Services to People,SEN Independent Sch," 30,377.22 ",401024,10372
06/04/2022,ZZH705665,1,14243,Keys PCE Ltd,261500,Human Resources Training & Conferences ,Fees and Charges,Services to People,SEN Independent Sch," 40,950.00 ",401024,10372
06/04/2022,ZZH705666,1,14243,Keys PCE Ltd,261500,Human Resources Training & Conferences ,Fees and Charges,Services to People,SEN Independent Sch," 17,062.50 ",401024,10372
06/04/2022,ZZH705668,1,12180,Acorn Care and Education,261500,Human Resources Training & Conferences ,Fees and Charges,Services to People,SEN Independent Sch," 37,199.66 ",401024,10372
06/04/2022,ZZH705669,1,12180,Acorn Care and Education,261500,Human Resources Training & Conferences ,Fees and Charges,Services to People,SEN Independent Sch," 34,020.69 ",401024,10372
06/04/2022,ZZH705670,1,12180,Acorn Care and Education,261500,Human Resources Training & Conferences ,Fees and Charges,Services to People,SEN Independent Sch," 37,147.61 ",401024,10372
06/04/2022,ZZH705671,1,12180,Acorn Care and Education,261500,Human Resources Training & Conferences ,Fees and Charges,Services to People,SEN Independent Sch," 37,147.61 ",401024,10372
06/04/2022,ZZH705672,1,10985,Broadstones School Ltd,261500,Human Resources Training & Conferences ,Fees and Charges,Services to People,SEN Independent Sch," 39,000.00 ",401024,10372
06/04/2022,ZZH705673,1,10985,Broadstones School Ltd,261500,Human Resources Training & Conferences ,Fees and Charges,Services to People,SEN Independent Sch," 39,000.00 ",401024,10372
06/04/2022,ZZH705674,1,10985,Broadstones School Ltd,261500,Human Resources Training & Conferences ,Fees and Charges,Services to People,SEN Independent Sch," 34,000.00 ",401024,10372
06/04/2022,ZZH705675,1,10985,Broadstones School Ltd,261500,Human Resources Training & Conferences ,Fees and Charges,Services to People,SEN Independent Sch," 34,000.00 ",401024,10372
06/04/2022,ZZH705676,1,10985,Broadstones School Ltd,261500,Human Resources Training & Conferences ,Fees and Charges,Services to People,SEN Independent Sch," 39,000.00 ",401024,10372
06/04/2022,ZZH705677,1,10985,Broadstones School Ltd,261500,Human Resources Training & Conferences ,Fees and Charges,Services to People,SEN Independent Sch," 34,000.00 ",401024,10372
06/04/2022,ZZH705678,1,1722,The Together Trust Centre,261500,Human Resources Training & Conferences ,Fees and Charges,Services to People,SEN Independent Sch," 45,366.00 ",401024,10372
06/04/2022,ZZH705679,1,1722,The Together Trust Centre,261500,Human Resources Training & Conferences ,Fees and Charges,Services to People,SEN Independent Sch," 44,925.93 ",401024,10372
06/04/2022,ZZH705680,1,1722,The Together Trust Centre,261500,Human Resources Training & Conferences ,Fees and Charges,Services to People,SEN Independent Sch," 44,925.93 ",401024,10372
06/04/2022,ZZH705681,1,1722,The Together Trust Centre,261500,Human Resources Training & Conferences ,Fees and Charges,Services to People,SEN Independent Sch," 40,634.34 ",401024,10372
06/04/2022,ZZH705683,1,1722,The Together Trust Centre,261500,Human Resources Training & Conferences ,Fees and Charges,Services to People,SEN Independent Sch," 40,239.95 ",401024,10372
06/04/2022,ZZH705684,1,1722,The Together Trust Centre,261500,Human Resources Training & Conferences ,Fees and Charges,Services to People,SEN Independent Sch," 40,634.53 ",401024,10372
06/04/2022,ZZH705686,1,1722,The Together Trust Centre,261500,Human Resources Training & Conferences ,Fees and Charges,Services to People,SEN Independent Sch," 30,244.44 ",401024,10372
06/04/2022,ZZH705687,1,1722,The Together Trust Centre,261500,Human Resources Training & Conferences ,Fees and Charges,Services to People,SEN Independent Sch," 44,925.93 ",401024,10372
06/04/2022,ZZH705688,1,1722,The Together Trust Centre,261500,Human Resources Training & Conferences ,Fees and Charges,Services to People,SEN Independent Sch," 45,666.00 ",401024,10372
06/04/2022,ZZH705689,1,1722,The Together Trust Centre,261500,Human Resources Training & Conferences ,Fees and Charges,Services to People,SEN Independent Sch," 44,925.93 ",401024,10372
06/04/2022,ZZH705690,1,1722,The Together Trust Centre,261500,Human Resources Training & Conferences ,Fees and Charges,Services to People,SEN Independent Sch," 40,634.39 ",401024,10372
06/04/2022,ZZH705691,1,1722,The Together Trust Centre,261500,Human Resources Training & Conferences ,Fees and Charges,Services to People,SEN Independent Sch," 45,366.36 ",401024,10372
06/04/2022,ZZH705692,1,1722,The Together Trust Centre,261500,Human Resources Training & Conferences ,Fees and Charges,Services to People,SEN Independent Sch," 41,771.27 ",401024,10372
06/04/2022,ZZH705693,1,1722,The Together Trust Centre,261500,Human Resources Training & Conferences ,Fees and Charges,Services to People,SEN Independent Sch," 40,239.95 ",401024,10372
06/04/2022,ZZH705695,1,12180,Acorn Care and Education,261500,Human Resources Training & Conferences ,Fees and Charges,Services to People,SEN Independent Sch," 37,147.61 ",401024,10372
06/04/2022,ZZH705696,1,12180,Acorn Care and Education,261500,Human Resources Training & Conferences ,Fees and Charges,Services to People,SEN Independent Sch," 37,147.61 ",401024,10372
07/04/2022,ZZH705718,1,11932,THOMSON REUTERS LTD,171113,Education Library Books ,Library Equipment,Corporate and Support Services,Legal Services," 34,784.40 ",400202,11117
07/04/2022,ZZH705720,1,4105,QA Ltd,260000,Human Resources  ,Staff Training,Corporate and Support Services,POD Workforce Dev," 5,000.00 ",102020,11888
07/04/2022,ZZH705721,1,4105,QA Ltd,270000,Information Communication Technology  ,Information and Communications Technology,Corporate and Support Services,POD Workforce Dev," 48,790.00 ",402010,11888
08/04/2022,ZZH705756,1,11021,The Laurus Trust (Cheadle Hulm,170000,Education  ,Third party payments - Public Sector,Services to People,OLA pupils," 7,814.00 ",500304,10371
08/04/2022,ZZH705757,1,12959,Apollo Home Healtcare,310000,Healthcare  ,Third party payments - Public Sector,Services to People,SEN Specific support," 15,960.00 ",500402,10300
08/04/2022,ZZH705771,1,13414,Horizon Care & Education Group,261500,Human Resources Training & Conferences ,Fees and Charges,Services to People,SEN Specific support," 89,376.00 ",401024,10300
08/04/2022,ZZH705772,1,1722,The Together Trust Centre,150000,Consultancy   ,Professional Fees,Services to People,SEN Specific support," 498,048.00 ",401020,10300
08/04/2022,ZZH705774,1,1722,The Together Trust Centre,150000,Consultancy   ,Professional Fees,Services to People,SEN-Parent Partnersh," 90,000.00 ",401020,10316
08/04/2022,ZZH705776,1,12269,PENARTH GROUP,261500,Human Resources Training & Conferences ,Fees and Charges,Services to People,SEN Independent Sch," 78,664.00 ",401024,10372
08/04/2022,ZZH705777,1,13205,Manchester Occupational Therap,150000,Consultancy   ,Professional Fees,Services to People,SEN Specific support," 49,500.00 ",401020,10300
08/04/2022,ZZH705778,1,14677,Melland High School BFET,170000,Education  ,Third party payments - Public Sector,Services to People,OLA pupils," 8,810.00 ",500304,10371
08/04/2022,ZZH705780,1,6967,Wilde Consultants Ltd,390000,Supplies and services,Supplies and services,Services to Place,Network Assets Staff," 19,080.00 ",401600,11959
08/04/2022,ZZH705781,1,1722,The Together Trust Centre,261500,Human Resources Training & Conferences ,Fees and Charges,Services to People,SEN NMSS School Fees," 73,253.00 ",401024,12710
08/04/2022,ZZH705782,1,1722,The Together Trust Centre,261500,Human Resources Training & Conferences ,Fees and Charges,Services to People,SEN Independent Sch," 58,926.00 ",401024,10372
08/04/2022,ZZH705783,1,12180,Acorn Care and Education,261500,Human Resources Training & Conferences ,Fees and Charges,Services to People,SEN Independent Sch," 58,426.12 ",401024,10372
08/04/2022,ZZH705784,1,12180,Acorn Care and Education,261500,Human Resources Training & Conferences ,Fees and Charges,Services to People,SEN Independent Sch," 71,057.00 ",401024,10372
08/04/2022,ZZH705785,1,12180,Acorn Care and Education,261500,Human Resources Training & Conferences ,Fees and Charges,Services to People,SEN Independent Sch," 74,741.21 ",401024,10372
08/04/2022,ZZH705786,1,12180,Acorn Care and Education,261500,Human Resources Training & Conferences ,Fees and Charges,Services to People,SEN Independent Sch," 64,682.37 ",401024,10372
08/04/2022,ZZH705787,1,12180,Acorn Care and Education,261500,Human Resources Training & Conferences ,Fees and Charges,Services to People,SEN Independent Sch," 66,287.00 ",401024,10372
08/04/2022,ZZH705788,1,12180,Acorn Care and Education,261500,Human Resources Training & Conferences ,Fees and Charges,Services to People,SEN Independent Sch," 71,057.00 ",401024,10372
08/04/2022,ZZH705789,1,12180,Acorn Care and Education,261500,Human Resources Training & Conferences ,Fees and Charges,Services to People,SEN Independent Sch," 58,426.12 ",401024,10372
08/04/2022,ZZH705790,1,12180,Acorn Care and Education,261500,Human Resources Training & Conferences ,Fees and Charges,Services to People,SEN Independent Sch," 77,500.00 ",401024,10372
08/04/2022,ZZH705791,1,12180,Acorn Care and Education,261500,Human Resources Training & Conferences ,Fees and Charges,Services to People,SEN Independent Sch," 66,287.00 ",401024,10372
08/04/2022,ZZH705792,1,12180,Acorn Care and Education,261500,Human Resources Training & Conferences ,Fees and Charges,Services to People,SEN Independent Sch," 54,229.34 ",401024,10372
08/04/2022,ZZH705793,1,12180,Acorn Care and Education,261500,Human Resources Training & Conferences ,Fees and Charges,Services to People,SEN Independent Sch," 58,069.00 ",401024,10372
08/04/2022,ZZH705794,1,12180,Acorn Care and Education,261500,Human Resources Training & Conferences ,Fees and Charges,Services to People,SEN Independent Sch," 58,552.92 ",401024,10372
08/04/2022,ZZH705795,1,1722,The Together Trust Centre,261500,Human Resources Training & Conferences ,Fees and Charges,Services to People,SEN NMSS School Fees," 74,450.00 ",401024,12710
08/04/2022,ZZH705796,1,1722,The Together Trust Centre,261500,Human Resources Training & Conferences ,Fees and Charges,Services to People,SEN NMSS School Fees," 58,901.86 ",401024,12710
08/04/2022,ZZH705797,1,1722,The Together Trust Centre,261500,Human Resources Training & Conferences ,Fees and Charges,Services to People,SEN NMSS School Fees," 69,504.00 ",401024,12710
08/04/2022,ZZH705810,1,4272,Civica UK Ltd,270000,Information Communication Technology  ,Information and Communications Technology,Corporate and Support Services,Bentax," 7,116.00 ",402001,11139
08/04/2022,ZZH705811,1,1722,The Together Trust Centre,261500,Human Resources Training & Conferences ,Fees and Charges,Services to People,SEN NMSS School Fees," 71,120.00 ",401024,12710
08/04/2022,ZZH705812,1,1722,The Together Trust Centre,261500,Human Resources Training & Conferences ,Fees and Charges,Services to People,SEN NMSS School Fees," 65,515.00 ",401024,12710
08/04/2022,ZZH705813,1,1722,The Together Trust Centre,261500,Human Resources Training & Conferences ,Fees and Charges,Services to People,SEN NMSS School Fees," 63,686.69 ",401024,12710
08/04/2022,ZZH705814,1,1722,The Together Trust Centre,261500,Human Resources Training & Conferences ,Fees and Charges,Services to People,SEN NMSS School Fees," 64,212.67 ",401024,12710
08/04/2022,ZZH705815,1,1722,The Together Trust Centre,261500,Human Resources Training & Conferences ,Fees and Charges,Services to People,SEN NMSS School Fees," 71,120.00 ",401024,12710
08/04/2022,ZZH705816,1,1722,The Together Trust Centre,261500,Human Resources Training & Conferences ,Fees and Charges,Services to People,SEN NMSS School Fees," 65,515.00 ",401024,12710
08/04/2022,ZZH705817,1,1722,The Together Trust Centre,261500,Human Resources Training & Conferences ,Fees and Charges,Services to People,SEN NMSS School Fees," 69,504.00 ",401024,12710
08/04/2022,ZZH705819,1,1722,The Together Trust Centre,261500,Human Resources Training & Conferences ,Fees and Charges,Services to People,SEN NMSS School Fees," 68,256.00 ",401024,12710
08/04/2022,ZZH705821,1,1722,The Together Trust Centre,261500,Human Resources Training & Conferences ,Fees and Charges,Services to People,SEN NMSS School Fees," 52,140.17 ",401024,12710
08/04/2022,ZZH705822,1,1722,The Together Trust Centre,261500,Human Resources Training & Conferences ,Fees and Charges,Services to People,SEN NMSS School Fees," 73,253.00 ",401024,12710
08/04/2022,ZZH705823,1,1722,The Together Trust Centre,261500,Human Resources Training & Conferences ,Fees and Charges,Services to People,SEN NMSS School Fees," 63,686.72 ",401024,12710
08/04/2022,ZZH705824,1,1722,The Together Trust Centre,261500,Human Resources Training & Conferences ,Fees and Charges,Services to People,SEN NMSS School Fees," 64,311.09 ",401024,12710
08/04/2022,ZZH705825,1,1722,The Together Trust Centre,261500,Human Resources Training & Conferences ,Fees and Charges,Services to People,SEN NMSS School Fees," 75,450.00 ",401024,12710
08/04/2022,ZZH705826,1,1816,Seashell Trust,261500,Human Resources Training & Conferences ,Fees and Charges,Services to People,SEN NMSS School Fees," 94,697.92 ",401024,12710
08/04/2022,ZZH705828,1,1816,Seashell Trust,261500,Human Resources Training & Conferences ,Fees and Charges,Services to People,SEN NMSS School Fees," 70,067.08 ",401024,12710
08/04/2022,ZZH705829,1,12180,Acorn Care and Education,261500,Human Resources Training & Conferences ,Fees and Charges,Services to People,SEN Independent Sch," 66,287.00 ",401024,10372
08/04/2022,ZZH705830,1,12180,Acorn Care and Education,261500,Human Resources Training & Conferences ,Fees and Charges,Services to People,SEN Independent Sch," 58,069.00 ",401024,10372
08/04/2022,ZZH705831,1,12180,Acorn Care and Education,261500,Human Resources Training & Conferences ,Fees and Charges,Services to People,SEN Independent Sch," 59,750.00 ",401024,10372
08/04/2022,ZZH705832,1,12180,Acorn Care and Education,261500,Human Resources Training & Conferences ,Fees and Charges,Services to People,SEN Independent Sch," 67,287.00 ",401024,10372
08/04/2022,ZZH705833,1,10985,Broadstones School Ltd,261500,Human Resources Training & Conferences ,Fees and Charges,Services to People,SEN Independent Sch," 52,000.00 ",401024,10372
08/04/2022,ZZH705834,1,13002,SpeechWise Speech and Language,150000,Consultancy   ,Professional Fees,Services to People,SEN Specific support," 77,861.00 ",401020,10300
08/04/2022,ZZH705844,1,10346,STOCKPORT ADVOCACY,320000,Social Community Care Supplies & Services  ,Third party payments - Private/Voluntary Sector,Services to People,Advocacy," 279,755.00 ",402403,12853
08/04/2022,ZZH705869,1,6803,Bibliotheca Ltd,181800,Environmental Services Technical Equipment ,Furniture and Equipment,Corporate and Support Services,Public Libraries Gen," 9,548.10 ",400111,11329
11/04/2022,ZZH705887,1,14243,Keys PCE Ltd,261500,Human Resources Training & Conferences ,Fees and Charges,Services to People,SEN Independent Sch," 45,240.00 ",401024,10372
11/04/2022,ZZH705888,1,1816,Seashell Trust,261500,Human Resources Training & Conferences ,Fees and Charges,Services to People,SEN NMSS School Fees," 41,340.84 ",401024,12710
11/04/2022,ZZH705906,1,15098,Coverdale Barclay,150000,Consultancy   ,Professional Fees,Services to Place,MDC Mayoral DC," 55,500.00 ",401007,13033
11/04/2022,ZZH705914,1,10985,Broadstones School Ltd,261500,Human Resources Training & Conferences ,Fees and Charges,Services to People,SEN Independent Sch," 13,000.00 ",401024,10372
12/04/2022,ZZH705932,1,3529,Totally Local Company Ltd,381600,Vehicle Management Hire/Leasing ,Leasing /Transport Hire,Services to Place,Hygiene Action Clean," 11,024.16 ",300300,10896
12/04/2022,ZZH705932,2,3529,Totally Local Company Ltd,381600,Vehicle Management Hire/Leasing ,Leasing /Transport Hire,Services to Place,Hygiene Action Clean," 1,738.44 ",300300,10896
12/04/2022,ZZH705937,1,3529,Totally Local Company Ltd,381600,Vehicle Management Hire/Leasing ,Leasing /Transport Hire,Services to Place,Berevement Services," 4,228.08 ",300300,11285
12/04/2022,ZZH705937,2,3529,Totally Local Company Ltd,381600,Vehicle Management Hire/Leasing ,Leasing /Transport Hire,Services to Place,Berevement Services," 1,738.44 ",300300,11285
12/04/2022,ZZH705938,1,3529,Totally Local Company Ltd,381600,Vehicle Management Hire/Leasing ,Leasing /Transport Hire,Services to Place,Hygiene Action Clean," 7,262.64 ",300300,10896
12/04/2022,ZZH705938,2,3529,Totally Local Company Ltd,381600,Vehicle Management Hire/Leasing ,Leasing /Transport Hire,Services to Place,Hygiene Action Clean," 1,738.44 ",300300,10896
12/04/2022,ZZH705945,1,13414,Horizon Care & Education Group,261500,Human Resources Training & Conferences ,Fees and Charges,Services to People,SEN Independent Sch," 99,231.10 ",401024,10372
12/04/2022,ZZH705946,1,1722,The Together Trust Centre,261500,Human Resources Training & Conferences ,Fees and Charges,Services to People,SEN NMSS School Fees," 72,945.53 ",401024,12710
12/04/2022,ZZH705951,1,14034,Oxygen Finance Limited,999999,Fees and Charges,Fees and Charges,Corporate and Support Services,U-Misc Fin-Corp Mang," 30,000.00 ",401035,10971
12/04/2022,ZZH705966,1,3529,Totally Local Company Ltd,390000,Supplies and services,Supplies and services,Services to Place,Nature-Arboriculture," 7,380.00 ",401600,11281
12/04/2022,ZZH705967,1,9232,Reed Specialist Recruitment Lt,320000,Social Community Care Supplies & Services  ,Care Payments,Services to People,DP - Respite," 21,000.00 ",530358,11513
12/04/2022,ZZH705968,1,3529,Totally Local Company Ltd,390000,Supplies and services,Supplies and services,Services to Place,Nature-Arboriculture," 5,183.20 ",401600,11281
12/04/2022,ZZH705988,1,14243,Keys PCE Ltd,261500,Human Resources Training & Conferences ,Fees and Charges,Services to People,SEN Independent Sch," 103,047.01 ",401024,10372
12/04/2022,ZZH705990,1,7025,CBRE Limited,150000,Consultancy   ,Professional Fees,#N/A,#N/A," 15,352.00 ",401020,C.10932.005
12/04/2022,ZZH705996,1,3750,TheNational Trust(Enterprises),150000,Consultancy   ,Professional Fees,Services to Place,U-Lyme Park & Hall," 1,002,711.00 ",401007,11379
12/04/2022,ZZH705999,1,14943,Wirral Borough Council,999999,Third party payments - Public Sector,Third party payments - Public Sector,Services to People,Regional Imp Allianc," 55,000.00 ",500303,13031
12/04/2022,ZZH706004,1,14298,Lagan's Foundation,320000,Social Community Care Supplies & Services  ,Care Payments,Services to People,DP - Respite," 44,928.00 ",530335,11513
12/04/2022,ZZH706005,1,1722,The Together Trust Centre,320000,Social Community Care Supplies & Services  ,Care Payments,Services to People,DP - Respite," 26,400.00 ",530335,11513
12/04/2022,ZZH706006,1,11782,Time Specialist Support,320000,Social Community Care Supplies & Services  ,Care Payments,Services to People,DP - Respite," 6,240.00 ",530335,11513
12/04/2022,ZZH706007,1,1722,The Together Trust Centre,320000,Social Community Care Supplies & Services  ,Care Payments,Services to People,DP - Respite," 7,650.00 ",530335,11513
12/04/2022,ZZH706010,1,1816,Seashell Trust,320000,Social Community Care Supplies & Services  ,Care Payments,Services to People,DP - Respite," 5,072.80 ",530335,11513
12/04/2022,ZZH706012,1,3529,Totally Local Company Ltd,999999,Fees and Charges,Fees and Charges,Services to Place,Operational Support," 75,000.00 ",402404,10924
12/04/2022,ZZH706013,1,3529,Totally Local Company Ltd,350000,Street & Traffic Management  ,Fixtures and Fittings,Services to Place,Public Realm Inspect," 13,000.00 ",201202,10879
12/04/2022,ZZH706015,1,11667,MYCLOUD LIMITED,999999,Fees and Charges,Fees and Charges,Services to People,MOS - Mosaic Mngmnt," 20,000.00 ",401035,11430
12/04/2022,ZZH706023,1,6116,Atkins Limited,150000,Consultancy   ,Professional Fees,Services to Place,Highways-Network Man," 44,460.00 ",401020,11968
13/04/2022,ZZH706039,1,15041,Styal Primary School,170000,Education  ,Third party payments - Public Sector,Services to People,OLA pupils," 10,705.00 ",500304,10371
13/04/2022,ZZH706056,1,12191,WILMSLOW HIGH SCHOOL,170000,Education  ,Third party payments - Public Sector,Services to People,OLA pupils," 10,750.00 ",500304,10371
13/04/2022,ZZH706058,1,6702,Cheshire West and Chester Coun,170000,Education  ,Third party payments - Public Sector,Services to People,OLA pupils," 6,122.00 ",500304,10371
13/04/2022,ZZH706060,1,12263,Ashgate Specialist Support Pri,170000,Education  ,Third party payments - Public Sector,Services to People,OLA pupils," 9,300.00 ",500304,10371
13/04/2022,ZZH706061,1,13138,The Barlow RC High School,170000,Education  ,Third party payments - Public Sector,Services to People,OLA pupils," 15,385.00 ",500304,10371
13/04/2022,ZZH706063,1,13989,Cavendish Community Primary Sc,170000,Education  ,Third party payments - Public Sector,Services to People,OLA pupils," 9,352.20 ",500304,10371
13/04/2022,ZZH706064,1,13594,Southern Cross School,170000,Education  ,Third party payments - Public Sector,Services to People,OLA pupils," 46,375.00 ",500304,10371
13/04/2022,ZZH706065,1,13594,Southern Cross School,170000,Education  ,Third party payments - Public Sector,Services to People,OLA pupils," 15,000.00 ",500304,10371
13/04/2022,ZZH706066,1,13594,Southern Cross School,170000,Education  ,Third party payments - Public Sector,Services to People,OLA pupils," 15,000.00 ",500304,10371
13/04/2022,ZZH706067,1,13297,St Cuthbert's R.C Primary Scho,170000,Education  ,Third party payments - Public Sector,Services to People,OLA pupils," 5,052.00 ",500304,10371
13/04/2022,ZZH706068,1,14475,St Matthews Roman Catholic Hig,170000,Education  ,Third party payments - Public Sector,Services to People,OLA pupils," 6,433.00 ",500304,10371
13/04/2022,ZZH706070,1,13316,New Bridge Multi Academy Group,170000,Education  ,Third party payments - Public Sector,Services to People,OLA pupils," 27,725.00 ",500304,10371
13/04/2022,ZZH706071,1,13316,New Bridge Multi Academy Group,170000,Education  ,Third party payments - Public Sector,Services to People,OLA pupils," 18,431.67 ",500304,10371
13/04/2022,ZZH706075,1,13244,Sovereign Trust,170000,Education  ,Third party payments - Public Sector,Services to People,OLA pupils," 16,392.98 ",500304,10371
13/04/2022,ZZH706076,1,13244,Sovereign Trust,170000,Education  ,Third party payments - Public Sector,Services to People,OLA pupils," 26,004.03 ",500304,10371
13/04/2022,ZZH706077,1,12268,The Orchards,261500,Human Resources Training & Conferences ,Fees and Charges,Services to People,OLA pupils," 13,403.76 ",401024,10371
13/04/2022,ZZH706086,1,9456,Grange School,170000,Education  ,Third party payments - Public Sector,Services to People,OLA pupils," 9,583.33 ",500304,10371
13/04/2022,ZZH706088,1,14941,Green End Primary School,170000,Education  ,Third party payments - Public Sector,Services to People,OLA pupils," 7,814.00 ",500304,10371
13/04/2022,ZZH706092,1,10716,Pure Insight 1628 Ltd,320000,Social Community Care Supplies & Services  ,Third party payments - Private/Voluntary Sector,Corporate and Support Services,Com. Invest Fund," 6,015.00 ",402403,12979
13/04/2022,ZZH706092,2,10716,Pure Insight 1628 Ltd,320000,Social Community Care Supplies & Services  ,Third party payments - Private/Voluntary Sector,Corporate and Support Services,Com. Invest Fund," 6,015.00 ",402403,12979
13/04/2022,ZZH706092,3,10716,Pure Insight 1628 Ltd,320000,Social Community Care Supplies & Services  ,Third party payments - Private/Voluntary Sector,Corporate and Support Services,Com. Invest Fund," 6,015.00 ",402403,12979
13/04/2022,ZZH706092,4,10716,Pure Insight 1628 Ltd,320000,Social Community Care Supplies & Services  ,Third party payments - Private/Voluntary Sector,Corporate and Support Services,Com. Invest Fund," 6,015.00 ",402403,12979
13/04/2022,ZZH706093,1,10637,OWLS GROUP,320000,Social Community Care Supplies & Services  ,Third party payments - Private/Voluntary Sector,Corporate and Support Services,Com. Invest Fund," 7,262.50 ",402403,12979
13/04/2022,ZZH706093,2,10637,OWLS GROUP,320000,Social Community Care Supplies & Services  ,Third party payments - Private/Voluntary Sector,Corporate and Support Services,Com. Invest Fund," 7,262.50 ",402403,12979
13/04/2022,ZZH706093,3,10637,OWLS GROUP,320000,Social Community Care Supplies & Services  ,Third party payments - Private/Voluntary Sector,Corporate and Support Services,Com. Invest Fund," 7,262.50 ",402403,12979
13/04/2022,ZZH706093,4,10637,OWLS GROUP,320000,Social Community Care Supplies & Services  ,Third party payments - Private/Voluntary Sector,Corporate and Support Services,Com. Invest Fund," 7,262.50 ",402403,12979
13/04/2022,ZZH706096,1,7231,BEACON COUNSELLING,320000,Social Community Care Supplies & Services  ,Third party payments - Private/Voluntary Sector,Corporate and Support Services,Com. Invest Fund," 6,486.50 ",402403,12979
13/04/2022,ZZH706096,2,7231,BEACON COUNSELLING,320000,Social Community Care Supplies & Services  ,Third party payments - Private/Voluntary Sector,Corporate and Support Services,Com. Invest Fund," 6,486.50 ",402403,12979
13/04/2022,ZZH706096,3,7231,BEACON COUNSELLING,320000,Social Community Care Supplies & Services  ,Third party payments - Private/Voluntary Sector,Corporate and Support Services,Com. Invest Fund," 6,486.50 ",402403,12979
13/04/2022,ZZH706096,4,7231,BEACON COUNSELLING,320000,Social Community Care Supplies & Services  ,Third party payments - Private/Voluntary Sector,Corporate and Support Services,Com. Invest Fund," 6,486.50 ",402403,12979
13/04/2022,ZZH706117,1,3284,Stockport CP Ltd t/a Supportab,320000,Social Community Care Supplies & Services  ,Care Payments,Services to People,DP - Respite," 7,160.40 ",530335,11513
13/04/2022,ZZH706119,1,1816,Seashell Trust,320000,Social Community Care Supplies & Services  ,Care Payments,Services to People,DP - Respite," 5,553.60 ",530358,11513
13/04/2022,ZZH706120,1,1722,The Together Trust Centre,320000,Social Community Care Supplies & Services  ,Care Payments,Services to People,DP - Respite," 7,650.00 ",530358,11513
14/04/2022,ZZH706142,1,1722,The Together Trust Centre,320000,Social Community Care Supplies & Services  ,Care Payments,Services to People,DP - Respite," 7,650.00 ",530358,11513
14/04/2022,ZZH706147,1,1816,Seashell Trust,290000,Arts & Leisure Services  ,Publicity and Promotion,Services to People,DP -  Aiming High," 5,197.92 ",401801,11432
14/04/2022,ZZH706169,1,9365,DSI Billing Services Ltd,191600,Facilities & Management Services Printing ,Printing and Photocopying,Corporate and Support Services,Bentax," 58,597.09 ",400800,11139
14/04/2022,ZZH706183,1,3529,Totally Local Company Ltd,391114,"Works - Construction, Repair & Maintenance Buildings Surveys",Capital Expenditure - Fees,#N/A,#N/A," 6,192.75 ",200316,C.01456.201
16/04/2022,ZZH706192,1,4463,Reach Publishing Serv (MEN),390000,"Works - Construction, Repair & Maintenance  ",Capital Expenditure - Works,#N/A,#N/A," 10,000.00 ",200304,C.00614.203
19/04/2022,ZZH706208,1,11715,CBRE,150000,Consultancy   ,Professional Fees,#N/A,#N/A," 34,828.00 ",401020,C.10932.005
19/04/2022,ZZH706223,1,6918,CYBER MEDIA SOLUTIONS,270000,Information Communication Technology  ,Information and Communications Technology,Corporate and Support Services,I.T Business Relat," 13,200.00 ",402001,13044
19/04/2022,ZZH706223,2,6918,CYBER MEDIA SOLUTIONS,270000,Information Communication Technology  ,Information and Communications Technology,Corporate and Support Services,I.T Business Relat," 2,000.00 ",402001,13044
19/04/2022,ZZH706227,1,1722,The Together Trust Centre,320000,Social Community Care Supplies & Services  ,Care Payments,Services to People,DP - Respite," 18,283.30 ",530335,11513
19/04/2022,ZZH706228,1,3284,Stockport CP Ltd t/a Supportab,320000,Social Community Care Supplies & Services  ,Care Payments,Services to People,DP - Respite," 6,058.80 ",530358,11513
19/04/2022,ZZH706229,1,6568,CROSSROADS CARING FOR CARERS,320000,Social Community Care Supplies & Services  ,Care Payments,Services to People,DP - Respite," 11,088.00 ",530335,11513
19/04/2022,ZZH706230,1,1722,The Together Trust Centre,320000,Social Community Care Supplies & Services  ,Care Payments,Services to People,DP - Respite," 14,885.52 ",530335,11513
19/04/2022,ZZH706234,1,1816,Seashell Trust,320000,Social Community Care Supplies & Services  ,Care Payments,Services to People,DP - Respite," 11,500.00 ",530335,11513
19/04/2022,ZZH706235,1,13993,Tordan Healthcare Ltd,320000,Social Community Care Supplies & Services  ,Care Payments,Services to People,DP - Respite," 9,672.00 ",530335,11513
19/04/2022,ZZH706236,1,15111,Active Communities Experiences,320000,Social Community Care Supplies & Services  ,Third party payments - Private/Voluntary Sector,Corporate and Support Services,Com. Invest Fund," 14,000.00 ",402403,12979
19/04/2022,ZZH706237,1,1722,The Together Trust Centre,320000,Social Community Care Supplies & Services  ,Care Payments,Services to People,DP - Respite," 17,213.23 ",530335,11513
19/04/2022,ZZH706238,1,1722,The Together Trust Centre,320000,Social Community Care Supplies & Services  ,Care Payments,Services to People,DP - Respite," 28,737.00 ",530335,11513
19/04/2022,ZZH706239,1,13808,Progress to Excellence Group,261500,Human Resources Training & Conferences ,Fees and Charges,Services to People,SEN Independent Sch," 125,000.00 ",401024,10372
19/04/2022,ZZH706240,1,1816,Seashell Trust,320000,Social Community Care Supplies & Services  ,Care Payments,Services to People,DP - Respite," 5,516.16 ",530335,11513
19/04/2022,ZZH706241,1,13692,Family Care Solutions,320000,Social Community Care Supplies & Services  ,Care Payments,Services to People,DP - Respite," 24,000.00 ",530335,11513
19/04/2022,ZZH706244,1,4482,Waste Solutions SK Ltd,182000,Environmental Services Waste Management ,Waste Management,Corporate and Support Services,Public Libraries Gen," 5,572.80 ",201803,11329
19/04/2022,ZZH706267,1,216,Manchester City Council,999999,Third party payments - Public Sector,Third party payments - Public Sector,Services to People,PH-GUM Services," 126,318.00 ",500303,12745
19/04/2022,ZZH706270,1,14686,Post Office Limited,#N/A,#N/A,#N/A,Services to People,H'sehold S'port Fund," 25,631.35 ",500999,13154
19/04/2022,ZZH706270,2,14686,Post Office Limited,#N/A,#N/A,#N/A,Services to People,H'sehold S'port Fund, 265.86 ,500999,13154
19/04/2022,ZZH706273,1,1342,UK Container Maintenance Ltd,182020,Environmental Services Waste Management,Waste Management Equipment,Services to Place,Bulk Container," 2,210.40 ",400401,10883
19/04/2022,ZZH706273,2,1342,UK Container Maintenance Ltd,182020,Environmental Services Waste Management,Waste Management Equipment,Services to Place,Bulk Container, 736.80 ,400401,10883
19/04/2022,ZZH706273,3,1342,UK Container Maintenance Ltd,182020,Environmental Services Waste Management,Waste Management Equipment,Services to Place,Bulk Container, 921.00 ,400401,10883
19/04/2022,ZZH706273,4,1342,UK Container Maintenance Ltd,182020,Environmental Services Waste Management,Waste Management Equipment,Services to Place,Bulk Container, 252.00 ,400401,10883
19/04/2022,ZZH706273,5,1342,UK Container Maintenance Ltd,182020,Environmental Services Waste Management,Waste Management Equipment,Services to Place,Bulk Container, 936.60 ,400401,10883
19/04/2022,ZZH706278,1,14189,SH:24 CIC,181800,Environmental Services Technical Equipment ,Furniture and Equipment,Services to People,PH-Sexual Health," 5,275.00 ",400110,12736
19/04/2022,ZZH706279,1,1339,Stockport NHS Foundation Trust,310000,Healthcare  ,Third party payments - Public Sector,Services to People,PH-Lifestyles," 18,800.00 ",500402,12737
19/04/2022,ZZH706281,1,12313,Locala Community Partnership,310000,Healthcare  ,Third party payments - Public Sector,Services to People,PH-Sexual Health," 2,888,312.00 ",500401,12736
19/04/2022,ZZH706282,1,11820,NHS BUSINESS SERVICES AUTHORIT,999999,Fees and Charges,Fees and Charges,Services to People,PH-Drug & Alcohol," 343,000.00 ",401035,12731
19/04/2022,ZZH706283,1,4369,Pennine Care NHS Trust,999999,Social Community Care Supplies & Services  ,Service Contract Payments,Services to People,PH-Drug & Alcohol," 1,675,841.00 ",561704,12731
19/04/2022,ZZH706284,1,10867,ABL Health Ltd,310000,Healthcare  ,Third party payments - Public Sector,Services to People,PH-Lifestyles," 332,595.00 ",500402,12737
20/04/2022,ZZH706297,1,9365,DSI Billing Services Ltd,191600,Facilities & Management Services Printing ,Printing and Photocopying,Corporate and Support Services,Bentax," 60,000.00 ",400800,11139
20/04/2022,ZZH706312,1,14088,Oyster Partnership,261400,Human Resources Temporary & Agency Staff ,Agency Staff,Services to Place,Housing Standards," 42,000.00 ",100290,10956
20/04/2022,ZZH706318,1,3292,Reach Publishing Services Ltd,190000,Facilities & Management Services  ,Publicity and Promotion,Services to Place,Highways-Network Man," 30,000.00 ",401800,11968
20/04/2022,ZZH706319,1,6967,Wilde Consultants Ltd,150000,Consultancy   ,Professional Fees,Services to Place,Highways-Network Man," 44,460.00 ",401020,11968
20/04/2022,ZZH706320,1,6116,Atkins Limited,150000,Consultancy   ,Professional Fees,Services to Place,Highways-Network Man," 44,366.40 ",401020,11968
20/04/2022,ZZH706341,1,6748,GEORGE COX & SONS LTD,390000,Supplies and services,Supplies and services,#N/A,#N/A," 130,780.26 ",401600,C.01356.202
20/04/2022,ZZH706350,1,10966,National Car Parks Ltd,202000,Financial Services Rents ,Rents,Services to Place,Stockport Exch.Phase," 20,314.00 ",200700,13085
20/04/2022,ZZH706352,1,12533,Priory Group - Northern Office,310000,Healthcare  ,Third party payments - Public Sector,Services to People,Hospital Tuition," 70,000.00 ",500402,10370
20/04/2022,ZZH706356,1,902,Bikeright,181800,Environmental Services Technical Equipment ,Furniture and Equipment,Services to Place,Highways-Road Safety," 94,190.00 ",400110,11970
20/04/2022,ZZH706357,1,14669,Sapphire Utility Solutions Ltd,391114,"Works - Construction, Repair & Maintenance Buildings Surveys",Capital Expenditure - Fees,#N/A,#N/A," 6,071.64 ",200316,C.01456.201
20/04/2022,ZZH706358,1,6116,Atkins Limited,150000,Consultancy   ,Professional Fees,Services to Place,Feasibility," 29,652.48 ",401020,13062
20/04/2022,ZZH706359,1,6116,Atkins Limited,150000,Consultancy   ,Professional Fees,Services to Place,Feasibility," 12,080.64 ",401020,13062
20/04/2022,ZZH706360,1,6116,Atkins Limited,150000,Consultancy   ,Professional Fees,Services to Place,Feasibility," 26,619.84 ",401020,13062
20/04/2022,ZZH706361,1,6116,Atkins Limited,150000,Consultancy   ,Professional Fees,Services to Place,Feasibility," 44,366.40 ",401020,13062
20/04/2022,ZZH706362,1,6116,Atkins Limited,150000,Consultancy   ,Professional Fees,Services to Place,Feasibility," 44,366.40 ",401020,13062
20/04/2022,ZZH706363,1,6116,Atkins Limited,150000,Consultancy   ,Professional Fees,Services to Place,Feasibility," 49,420.80 ",401020,13062
20/04/2022,ZZH706364,1,6116,Atkins Limited,150000,Consultancy   ,Professional Fees,Services to Place,Feasibility," 44,366.40 ",401020,13062
21/04/2022,ZZH706371,1,13393,Valtech Limited,390000,"Works - Construction, Repair & Maintenance  ",Fees and Charges,Corporate and Support Services,Driver Assessment," 8,500.00 ",401017,11113
21/04/2022,ZZH706373,1,10753,APS GROUP,191600,Facilities & Management Services Printing ,Printing and Photocopying,Corporate and Support Services,Driver Assessment," 14,000.00 ",400800,11113
21/04/2022,ZZH706388,1,13860,Howard Lynn Property Ltd,261400,Human Resources Temporary & Agency Staff ,Agency Staff,Services to Place,Property Client Acct," 7,245.00 ",100290,12328
21/04/2022,ZZH706390,1,13223,A Pacini Ltd,261400,Human Resources Temporary & Agency Staff ,Agency Staff,Services to Place,Property Client Acct," 5,391.70 ",100290,12328
21/04/2022,ZZH706395,1,1339,Stockport NHS Foundation Trust,290000,Arts & Leisure Services  ,Publicity and Promotion,Services to People,EHP CC Abacus," 6,041.70 ",401801,10844
21/04/2022,ZZH706395,1,1339,Stockport NHS Foundation Trust,290000,Arts & Leisure Services  ,Publicity and Promotion,Services to People,Brinnigton CC," 6,041.70 ",401801,12295
22/04/2022,ZZH706441,1,12577,Guestline Hospitality Software,270000,Information Communication Technology  ,Information and Communications Technology,Corporate and Support Services,Town Hall Events," 6,000.00 ",402010,11375
22/04/2022,ZZH706446,1,7670,Wilds Of Oldham,110000,Catering  ,Expenses and Allowances,Corporate and Support Services,Bramall Hall Events," 5,000.00 ",402202,12949
22/04/2022,ZZH706447,1,7670,Wilds Of Oldham,110000,Catering  ,Expenses and Allowances,Corporate and Support Services,Town Hall Events," 10,000.00 ",402202,11375
22/04/2022,ZZH706467,1,1699,Mary Hare School,261500,Human Resources Training & Conferences ,Fees and Charges,Services to People,SEN NMSS School Fees," 44,269.00 ",401024,12710
22/04/2022,ZZH706469,1,13316,New Bridge Multi Academy Group,170000,Education  ,Third party payments - Public Sector,Services to People,OLA pupils," 5,833.33 ",500304,10371
22/04/2022,ZZH706480,1,3529,Totally Local Company Ltd,381600,Vehicle Management Hire/Leasing ,Leasing /Transport Hire,Services to Place,Berevement Services," 5,084.52 ",300300,11285
22/04/2022,ZZH706480,2,3529,Totally Local Company Ltd,380000,Vehicle Management  ,Vehicle Insurance,Services to Place,Berevement Services," 1,738.44 ",300700,11285
22/04/2022,ZZH706481,1,3529,Totally Local Company Ltd,381600,Vehicle Management Hire/Leasing ,Leasing /Transport Hire,Services to Place,Berevement Services," 5,904.00 ",300300,11285
22/04/2022,ZZH706481,2,3529,Totally Local Company Ltd,380000,Vehicle Management  ,Vehicle Insurance,Services to Place,Berevement Services," 1,738.44 ",300700,11285
22/04/2022,ZZH706482,1,3529,Totally Local Company Ltd,381600,Vehicle Management Hire/Leasing ,Leasing /Transport Hire,Services to Place,Berevement Services," 5,904.00 ",300300,11285
22/04/2022,ZZH706482,2,3529,Totally Local Company Ltd,380000,Vehicle Management  ,Vehicle Insurance,Services to Place,Berevement Services," 1,738.44 ",300700,11285
22/04/2022,ZZH706495,1,6116,Atkins Limited,150000,Consultancy   ,Professional Fees,Services to Place,Feasibility," 36,750.00 ",401020,13062
22/04/2022,ZZH706497,1,13025,Cygnet Health Care Ltd,310000,Healthcare  ,Third party payments - Public Sector,Services to People,Hospital Tuition," 15,000.00 ",500402,10370
22/04/2022,ZZH706498,1,12533,Priory Group - Northern Office,310000,Healthcare  ,Third party payments - Public Sector,Services to People,Hospital Tuition," 15,000.00 ",500402,10370
22/04/2022,ZZH706499,1,10499,Gravitas Recruitment Group Lim,261400,Human Resources Temporary & Agency Staff ,Agency Staff,Corporate and Support Services,Business Intelligenc," 49,500.00 ",100290,11872
22/04/2022,ZZH706503,1,13084,CORAM,261500,Human Resources Training & Conferences ,Fees and Charges,Services to People,CHILDREN PARTCPTN. T," 29,798.92 ",401024,11498
22/04/2022,ZZH706510,1,12344,Graham Construction Ltd,150000,Consultancy   ,Professional Fees,#N/A,#N/A," 77,305.24 ",401020,C.10960
25/04/2022,ZZH706520,1,15108,Computer Futures,150000,Consultancy   ,Professional Fees,Services to Place,Local Plan Project," 50,000.00 ",401020,12936
25/04/2022,ZZH706522,1,7025,CBRE Limited,150000,Consultancy   ,Professional Fees,Services to Place,Local Plan Project," 40,000.00 ",401007,12936
25/04/2022,ZZH706528,1,6909,Learning Pool Ltd,270000,Information Communication Technology  ,Information and Communications Technology,Corporate and Support Services,POD Workforce Dev," 48,790.00 ",402010,11888
25/04/2022,ZZH706530,1,10897,Three Sixty SHG Ltd,390000,"Works - Construction, Repair & Maintenance  ",Repairs and Maintenance,Services to People,Brinnigton CC," 7,000.00 ",200123,12295
25/04/2022,ZZH706562,1,12609,Sunbelt Rentals Limited,202000,Financial Services Rents ,Rents,Corporate and Support Services,Local Election," 19,933.00 ",200720,12102
26/04/2022,ZZH706588,1,9662,More Play more Often,290000,Arts & Leisure Services  ,Publicity and Promotion,Services to People,DP -  Aiming High," 25,558.75 ",401801,11432
26/04/2022,ZZH706589,1,13069,W H Good Ltd,390000,"Works - Construction, Repair & Maintenance  ",Repairs and Maintenance,#N/A,#N/A," 350,748.73 ",200123,C.10373.116
26/04/2022,ZZH706589,1,13069,W H Good Ltd,390000,"Works - Construction, Repair & Maintenance  ",Repairs and Maintenance,#N/A,#N/A," 350,748.73 ",200123,C.10373.237
26/04/2022,ZZH706601,1,7810,Renewal Northwest,320000,Social Community Care Supplies & Services  ,Third party payments - Private/Voluntary Sector,Corporate and Support Services,Com. Invest Fund," 10,000.00 ",402403,12979
26/04/2022,ZZH706601,2,7810,Renewal Northwest,320000,Social Community Care Supplies & Services  ,Third party payments - Private/Voluntary Sector,Corporate and Support Services,Com. Invest Fund," 6,000.00 ",402403,12979
26/04/2022,ZZH706601,3,7810,Renewal Northwest,320000,Social Community Care Supplies & Services  ,Third party payments - Private/Voluntary Sector,Corporate and Support Services,Com. Invest Fund," 4,000.00 ",402403,12979
26/04/2022,ZZH706606,1,10923,Johnson Stalbridge Linen Servi,111200,Catering Food & Beverages ,Catering Supplies,Corporate and Support Services,Town Hall Events," 5,000.00 ",400424,11375
26/04/2022,ZZH706615,1,11782,Time Specialist Support,320000,Social Community Care Supplies & Services  ,Care Payments,Services to People,DP - Respite," 5,000.00 ",530358,11513
26/04/2022,ZZH706616,1,11782,Time Specialist Support,320000,Social Community Care Supplies & Services  ,Care Payments,Services to People,DP - Respite," 16,000.00 ",530358,11513
26/04/2022,ZZH706618,1,11782,Time Specialist Support,320000,Social Community Care Supplies & Services  ,Care Payments,Services to People,DP - Respite," 8,000.00 ",530335,11513
26/04/2022,ZZH706619,1,11782,Time Specialist Support,320000,Social Community Care Supplies & Services  ,Care Payments,Services to People,DP - Respite," 6,203.75 ",530335,11513
26/04/2022,ZZH706626,1,7506,Angel Springs Ltd t/a Waterlog,210000,Furniture & Soft Furnishings  ,Furniture and Equipment,Services to Place,SPB Operational Est.," 10,408.43 ",400105,11662
26/04/2022,ZZH706635,1,11715,CBRE,390000,"Works - Construction, Repair & Maintenance  ",Repairs and Maintenance,Services to Place,Town Centre Devt Tea," 6,000.00 ",200123,10072
26/04/2022,ZZH706638,1,3495,RE Today,191600,Facilities & Management Services Printing ,Printing and Photocopying,Services to People,SI - Advisers," 6,195.00 ",400800,10727
26/04/2022,ZZH706640,1,12959,Apollo Home Healtcare,310000,Healthcare  ,Third party payments - Public Sector,Services to People,SEN Specific support," 14,332.50 ",500402,10300
26/04/2022,ZZH706665,1,12239,Shoosmiths LLP,280000,Legal Services  ,Legal Fees,Services to Place,CPO Compulsory P Ord," 5,000.00 ",401016,13040
27/04/2022,ZZH706685,1,3529,Totally Local Company Ltd,391114,"Works - Construction, Repair & Maintenance Buildings Surveys",Capital Expenditure - Fees,#N/A,#N/A," 26,719.62 ",200316,C.01476.202
27/04/2022,ZZH706686,1,4463,Reach Publishing Serv (MEN),190000,Facilities & Management Services  ,Publicity and Promotion,Services to Place,Rechargeable work," 18,400.00 ",401800,11961
27/04/2022,ZZH706687,1,3529,Totally Local Company Ltd,390000,Supplies and services,Supplies and services,#N/A,#N/A," 5,581.00 ",401600,C.00880.203
27/04/2022,ZZH706695,1,3284,Stockport CP Ltd t/a Supportab,320000,Social Community Care Supplies & Services  ,Care Payments,Services to People,DP - Respite," 8,448.00 ",530358,11513
27/04/2022,ZZH706696,1,1722,The Together Trust Centre,320000,Social Community Care Supplies & Services  ,Care Payments,Services to People,DP - Respite," 38,300.00 ",530358,11513
27/04/2022,ZZH706698,1,3284,Stockport CP Ltd t/a Supportab,320000,Social Community Care Supplies & Services  ,Care Payments,Services to People,DP - Respite," 6,783.00 ",530358,11513
27/04/2022,ZZH706710,1,8423,SMS Coaching Limited,261500,Human Resources Training & Conferences ,Fees and Charges,Services to People,SEN Independent Sch," 44,650.00 ",401024,10372
27/04/2022,ZZH706718,1,870,bksb Ltd,270000,Information Communication Technology  ,Information and Communications Technology,Services to Place,Contin Educ Service," 5,632.20 ",402010,10511
27/04/2022,ZZH706723,1,1339,Stockport NHS Foundation Trust,310000,Healthcare  ,Third party payments - Public Sector,Services to People,CYP PH Contracts," 5,344,176.00 ",500401,13034
27/04/2022,ZZH706727,1,1722,The Together Trust Centre,320000,Social Community Care Supplies & Services  ,Care Payments,Services to People,DP - Respite," 12,442.09 ",530335,11513
27/04/2022,ZZH706728,1,1722,The Together Trust Centre,320000,Social Community Care Supplies & Services  ,Care Payments,Services to People,DP - Respite," 14,136.00 ",530335,11513
27/04/2022,ZZH706729,1,3284,Stockport CP Ltd t/a Supportab,320000,Social Community Care Supplies & Services  ,Care Payments,Services to People,DP - Respite," 5,190.00 ",530335,11513
27/04/2022,ZZH706730,1,14298,Lagan's Foundation,320000,Social Community Care Supplies & Services  ,Care Payments,Services to People,DP - Respite," 7,488.00 ",530335,11513
27/04/2022,ZZH706731,1,3284,Stockport CP Ltd t/a Supportab,320000,Social Community Care Supplies & Services  ,Care Payments,Services to People,DP - Respite," 9,090.00 ",530335,11513
27/04/2022,ZZH706732,1,6568,CROSSROADS CARING FOR CARERS,320000,Social Community Care Supplies & Services  ,Care Payments,Services to People,DP - Respite," 5,616.00 ",530358,11513
27/04/2022,ZZH706735,1,3284,Stockport CP Ltd t/a Supportab,320000,Social Community Care Supplies & Services  ,Care Payments,Services to People,DP - Respite," 5,189.00 ",530358,11513
27/04/2022,ZZH706736,1,1816,Seashell Trust,320000,Social Community Care Supplies & Services  ,Care Payments,Services to People,DP - Respite," 5,516.00 ",530358,11513
27/04/2022,ZZH706741,1,13217,Steer Davies & Gleave Ltd,150000,Consultancy   ,Professional Fees,Services to Place,MDC Mayoral DC," 89,965.00 ",401007,13033
27/04/2022,ZZH706750,1,7231,BEACON COUNSELLING,311410,Healthcare Occupational Therapy Services ,Fees and Charges,Corporate and Support Services,POD Occ. Health," 90,000.00 ",400706,11721
28/04/2022,ZZH706771,1,3529,Totally Local Company Ltd,181800,Environmental Services Technical Equipment ,Furniture and Equipment,#N/A,#N/A," 8,283.62 ",400110,C.01299.201
28/04/2022,ZZH706772,1,3529,Totally Local Company Ltd,181800,Environmental Services Technical Equipment ,Furniture and Equipment,#N/A,#N/A," 8,464.74 ",400110,C.01299.201
28/04/2022,ZZH706775,1,13596,STOCKPORT PROGRESS AND RECOVER,999999,Fees and Charges,Fees and Charges,Services to People,SPARC," 182,000.00 ",402404,11674
28/04/2022,ZZH706776,1,1382,Pure Innovations Ltd,999999,Fees and Charges,Fees and Charges,Services to People,SPARC," 152,000.00 ",402404,11674
28/04/2022,ZZH706778,1,4617,Creative Support Ltd,320000,Social Community Care Supplies & Services  ,Care Payments,Services to People,Reddish ECH," 230,000.00 ",530332,13048
28/04/2022,ZZH706779,1,13874,HUMAN SUPPORT GROUP LTD,320000,Social Community Care Supplies & Services  ,Care Payments,Services to People,Heald Green ECH," 215,000.00 ",530332,13051
28/04/2022,ZZH706780,1,13884,Crossroads Together,320000,Social Community Care Supplies & Services  ,Care Payments,Services to People,Marple ECH," 200,000.00 ",530332,13050
28/04/2022,ZZH706781,1,13884,Crossroads Together,320000,Social Community Care Supplies & Services  ,Care Payments,Services to People,Edgeley ECH," 375,000.00 ",530332,13049
28/04/2022,ZZH706800,1,1644,Tameside MBC,390000,Supplies and services,Supplies and services,#N/A,#N/A," 5,318.00 ",401600,C.00403
28/04/2022,ZZH706810,1,14686,Post Office Limited,#N/A,#N/A,#N/A,Services to People,H'sehold S'port Fund," 25,631.35 ",500999,13154
28/04/2022,ZZH706810,2,14686,Post Office Limited,#N/A,#N/A,#N/A,Services to People,H'sehold S'port Fund, 265.86 ,500999,13154
28/04/2022,ZZH706839,1,8817,AECOM Infrastructure & Environ,150000,Consultancy   ,Professional Fees,Services to Place,Feasibility," 51,833.60 ",401020,13062
28/04/2022,ZZH706841,1,1644,Tameside MBC,390000,Supplies and services,Supplies and services,#N/A,#N/A," 28,241.00 ",401600,C.00403
28/04/2022,ZZH706842,1,11021,The Laurus Trust (Cheadle Hulm,150000,Consultancy   ,Professional Fees,Services to People,T.Union facilities," 78,679.00 ",401020,10472
29/04/2022,ZZH706851,1,833,Egbert Taylor Ltd,182020,Environmental Services Waste Management,Waste Management Equipment,Services to Place,Bulk Container," 14,722.05 ",400401,10883
29/04/2022,ZZH706851,2,833,Egbert Taylor Ltd,182020,Environmental Services Waste Management,Waste Management Equipment,Services to Place,Bulk Container," 6,042.60 ",400401,10883
29/04/2022,ZZH706856,1,3284,Stockport CP Ltd t/a Supportab,320000,Social Community Care Supplies & Services  ,Care Payments,Services to People,DP - Respite," 12,974.00 ",530335,11513
29/04/2022,ZZH706857,1,3284,Stockport CP Ltd t/a Supportab,320000,Social Community Care Supplies & Services  ,Care Payments,Services to People,DP - Respite," 7,784.40 ",530335,11513
29/04/2022,ZZH706858,1,3284,Stockport CP Ltd t/a Supportab,320000,Social Community Care Supplies & Services  ,Care Payments,Services to People,DP - Respite," 8,000.00 ",530335,11513
29/04/2022,ZZH706859,1,3284,Stockport CP Ltd t/a Supportab,320000,Social Community Care Supplies & Services  ,Care Payments,Services to People,DP - Respite," 12,672.00 ",530335,11513
29/04/2022,ZZH706860,1,1722,The Together Trust Centre,320000,Social Community Care Supplies & Services  ,Care Payments,Services to People,DP - Respite," 107,000.00 ",530335,11513
29/04/2022,ZZH706861,1,1722,The Together Trust Centre,320000,Social Community Care Supplies & Services  ,Care Payments,Services to People,DP - Respite," 42,408.00 ",530335,11513
29/04/2022,ZZH706863,1,1722,The Together Trust Centre,320000,Social Community Care Supplies & Services  ,Care Payments,Services to People,DP - Respite," 24,773.60 ",530335,11513
29/04/2022,ZZH706865,1,3284,Stockport CP Ltd t/a Supportab,320000,Social Community Care Supplies & Services  ,Care Payments,Services to People,DP - Respite," 6,000.00 ",530335,11513
29/04/2022,ZZH706866,1,1722,The Together Trust Centre,320000,Social Community Care Supplies & Services  ,Care Payments,Services to People,DP - Respite," 29,022.00 ",530335,11513
29/04/2022,ZZH706867,1,1722,The Together Trust Centre,320000,Social Community Care Supplies & Services  ,Care Payments,Services to People,DP - Respite," 26,544.00 ",530335,11513
29/04/2022,ZZH706868,1,1722,The Together Trust Centre,320000,Social Community Care Supplies & Services  ,Care Payments,Services to People,DP - Respite," 24,608.00 ",530335,11513
29/04/2022,ZZH706869,1,1722,The Together Trust Centre,320000,Social Community Care Supplies & Services  ,Care Payments,Services to People,DP - Respite," 20,746.00 ",530335,11513
29/04/2022,ZZH706870,1,3284,Stockport CP Ltd t/a Supportab,320000,Social Community Care Supplies & Services  ,Care Payments,Services to People,DP - Respite," 7,160.40 ",530335,11513
29/04/2022,ZZH706871,1,3284,Stockport CP Ltd t/a Supportab,320000,Social Community Care Supplies & Services  ,Care Payments,Services to People,DP - Respite," 6,656.00 ",530358,11513
29/04/2022,ZZH706872,1,6568,CROSSROADS CARING FOR CARERS,320000,Social Community Care Supplies & Services  ,Care Payments,Services to People,DP - Respite," 5,616.00 ",530358,11513
29/04/2022,ZZH706873,1,12138,HG CARE SERVICES LTD,320000,Social Community Care Supplies & Services  ,Care Payments,Services to People,DP - Respite," 8,000.00 ",530358,11513
29/04/2022,ZZH706880,1,3529,Totally Local Company Ltd,181800,Environmental Services Technical Equipment ,Furniture and Equipment,#N/A,#N/A," 8,283.62 ",400110,C.01299.201
29/04/2022,ZZH706881,1,3529,Totally Local Company Ltd,181800,Environmental Services Technical Equipment ,Furniture and Equipment,#N/A,#N/A," 8,283.62 ",400110,C.01299.201
29/04/2022,ZZH706899,1,3529,Totally Local Company Ltd,390000,Supplies and services,Supplies and services,#N/A,#N/A," 5,581.00 ",401600,C.00621.201
29/04/2022,ZZH706900,1,1339,Stockport NHS Foundation Trust,310000,Healthcare  ,Third party payments - Public Sector,Corporate and Support Services,U-Coroners Ct-Genera," 8,000.00 ",500401,10965
03/05/2022,ZZH706966,1,12313,Locala Community Partnership,202000,Financial Services Rents ,Rents,Services to People,PH-Sexual Health," 404,562.85 ",200700,12736
03/05/2022,ZZH706968,1,35,CBC Computer Systems Ltd,270000,Information Communication Technology  ,Information and Communications Technology,Corporate and Support Services,Members Services," 7,098.00 ",402001,11111
03/05/2022,ZZH706969,1,815,University of Manchester,261500,Human Resources Training & Conferences ,Fees and Charges,Services to People,SEN Incl - Psycholog," 7,975.00 ",401024,10751
03/05/2022,ZZH706978,1,8163,Starting Point Community Learn,320000,Social Community Care Supplies & Services  ,Third party payments - Private/Voluntary Sector,Corporate and Support Services,Com. Invest Fund," 4,992.00 ",402403,12979
03/05/2022,ZZH706978,2,8163,Starting Point Community Learn,320000,Social Community Care Supplies & Services  ,Third party payments - Private/Voluntary Sector,Corporate and Support Services,Com. Invest Fund," 4,992.00 ",402403,12979
03/05/2022,ZZH706986,1,15115,Alliance Leisure Services Limi,390000,"Works - Construction, Repair & Maintenance  ",Repairs and Maintenance,Services to Place,Leisure Level Up Fun," 68,785.00 ",200123,13124
03/05/2022,ZZH706999,1,15125,Keira's Kingdom,320000,Social Community Care Supplies & Services  ,Third party payments - Private/Voluntary Sector,Corporate and Support Services,Com. Invest Fund," 7,150.00 ",402403,12979
03/05/2022,ZZH706999,2,15125,Keira's Kingdom,320000,Social Community Care Supplies & Services  ,Third party payments - Private/Voluntary Sector,Corporate and Support Services,Com. Invest Fund," 7,150.00 ",402403,12979
03/05/2022,ZZH706999,3,15125,Keira's Kingdom,320000,Social Community Care Supplies & Services  ,Third party payments - Private/Voluntary Sector,Corporate and Support Services,Com. Invest Fund," 7,150.00 ",402403,12979
03/05/2022,ZZH706999,4,15125,Keira's Kingdom,320000,Social Community Care Supplies & Services  ,Third party payments - Private/Voluntary Sector,Corporate and Support Services,Com. Invest Fund," 7,150.00 ",402403,12979
03/05/2022,ZZH707009,1,4514,Brook,390000,Supplies and services,Supplies and services,Services to People,PH-Chlamydia Screen," 34,848.00 ",401600,12747
03/05/2022,ZZH707010,1,3707,Salford City Council/Finance,999999,Social Community Care Supplies & Services  ,Service Contract Payments,Services to People,PH-Sexual Health," 30,000.00 ",561704,12736
03/05/2022,ZZH707011,1,1722,The Together Trust Centre,320000,Social Community Care Supplies & Services  ,Care Payments,Services to People,DP - Respite," 66,651.32 ",530335,11513
04/05/2022,ZZH707015,1,8010,GROUNDWORK & LEISURE SERVIC,240000,Horticultural  ,Grounds Maintenance,#N/A,#N/A," 35,429.00 ",202032,C.00401
04/05/2022,ZZH707018,1,10798,Cludo UK Ltd,270000,Information Communication Technology  ,Information and Communications Technology,Corporate and Support Services,IT Systems," 7,126.00 ",402001,12503
04/05/2022,ZZH707088,1,9906,SocialSignIn Ltd/Orlo,190000,Facilities & Management Services  ,Office Expenses,Corporate and Support Services,POD Communications," 11,750.00 ",400710,11323
04/05/2022,ZZH707090,1,4272,Civica UK Ltd,270000,Information Communication Technology  ,Information and Communications Technology,Corporate and Support Services,Bentax," 6,587.03 ",402001,11139
05/05/2022,ZZH707107,1,13080,Skybound Therapies,320000,Social Community Care Supplies & Services  ,Care Payments,Services to People,LD Care Purchasing," 13,028.00 ",530328,11837
05/05/2022,ZZH707126,1,5367,Safespaces (Cornholme) Ltd,210000,Furniture & Soft Furnishings  ,Furniture and Equipment,Services to People,SEN Equipment," 5,239.86 ",400100,10324
05/05/2022,ZZH707126,2,5367,Safespaces (Cornholme) Ltd,210000,Furniture & Soft Furnishings  ,Furniture and Equipment,Services to People,SEN Equipment, 250.00 ,400100,10324
05/05/2022,ZZH707129,1,11466,High Peak School Ltd,261500,Human Resources Training & Conferences ,Fees and Charges,Services to People,SEN Independent Sch," 29,916.67 ",401024,10372
05/05/2022,ZZH707130,1,4083,Hulme Hall School,261500,Human Resources Training & Conferences ,Fees and Charges,Services to People,SEN Specific support," 8,649.00 ",401024,10300
05/05/2022,ZZH707131,1,4083,Hulme Hall School,261500,Human Resources Training & Conferences ,Fees and Charges,Services to People,SEN Specific support," 16,481.00 ",401024,10300
05/05/2022,ZZH707134,1,15112,Rodney House School,170000,Education  ,Third party payments - Public Sector,Services to People,OLA pupils," 9,965.00 ",500304,10371
05/05/2022,ZZH707135,1,15097,Maris Elkington,#N/A,#N/A,#N/A,Services to People,FP - Fostering Staff," 8,000.00 ",100999,11489
05/05/2022,ZZH707136,1,13002,SpeechWise Speech and Language,150000,Consultancy   ,Professional Fees,Services to People,SEN Specific support," 47,084.00 ",401020,10300
06/05/2022,ZZH707174,1,6870,KIDS,999999,Fees and Charges,Fees and Charges,Services to People,SEN Specific support," 5,000.00 ",401035,10300
06/05/2022,ZZH707176,1,1382,Pure Innovations Ltd,390000,Supplies and services,Supplies and services,Services to People,Pure Innovations," 168,600.00 ",401600,11071
06/05/2022,ZZH707188,1,14196,Grassroots Recruitment Ltd,999999,UNCLASSIFIED  ,MISCLASSIFIED? CHECK BEFORE PUBLICATION,Services to Place,Planning," 7,519.35 ",100100,12150
06/05/2022,ZZH707202,1,5422,PLAYDALE PLAYGROUNDS LTD,240000,Horticultural  ,Grounds Maintenance,Services to Place,Play," 6,180.70 ",202032,11267
06/05/2022,ZZH707211,1,6967,Wilde Consultants Ltd,150000,Consultancy   ,Professional Fees,Services to Place,Design Frmwk Staff," 51,804.48 ",401020,11965
06/05/2022,ZZH707212,1,6967,Wilde Consultants Ltd,150000,Consultancy   ,Professional Fees,Services to Place,Design Frmwk Staff," 43,836.00 ",401020,11965
06/05/2022,ZZH707213,1,6967,Wilde Consultants Ltd,150000,Consultancy   ,Professional Fees,Services to Place,Design Frmwk Staff," 91,520.00 ",401020,11965
06/05/2022,ZZH707214,1,6967,Wilde Consultants Ltd,150000,Consultancy   ,Professional Fees,Services to Place,Design Frmwk Staff," 46,800.00 ",401020,11965
06/05/2022,ZZH707215,1,6967,Wilde Consultants Ltd,150000,Consultancy   ,Professional Fees,Services to Place,Design Frmwk Staff," 83,200.00 ",401020,11965
06/05/2022,ZZH707216,1,6967,Wilde Consultants Ltd,150000,Consultancy   ,Professional Fees,Services to Place,Design Frmwk Staff," 82,680.00 ",401020,11965
06/05/2022,ZZH707217,1,6967,Wilde Consultants Ltd,150000,Consultancy   ,Professional Fees,Services to Place,Design Frmwk Staff," 83,720.00 ",401020,11965
06/05/2022,ZZH707218,1,6967,Wilde Consultants Ltd,150000,Consultancy   ,Professional Fees,Services to Place,Design Frmwk Staff," 97,760.00 ",401020,11965
06/05/2022,ZZH707219,1,6967,Wilde Consultants Ltd,150000,Consultancy   ,Professional Fees,Services to Place,Design Frmwk Staff," 41,340.00 ",401020,11965
06/05/2022,ZZH707220,1,6967,Wilde Consultants Ltd,150000,Consultancy   ,Professional Fees,Services to Place,Design Frmwk Staff," 59,800.00 ",401020,11965
06/05/2022,ZZH707221,1,6967,Wilde Consultants Ltd,150000,Consultancy   ,Professional Fees,Services to Place,Design Frmwk Staff," 83,179.20 ",401020,11965
06/05/2022,ZZH707222,1,6967,Wilde Consultants Ltd,150000,Consultancy   ,Professional Fees,Services to Place,Design Frmwk Staff," 59,800.00 ",401020,11965
06/05/2022,ZZH707223,1,6967,Wilde Consultants Ltd,150000,Consultancy   ,Professional Fees,Services to Place,Design Frmwk Staff," 71,760.00 ",401020,11965
06/05/2022,ZZH707224,1,6967,Wilde Consultants Ltd,150000,Consultancy   ,Professional Fees,Services to Place,Design Frmwk Staff," 35,880.00 ",401020,11965
06/05/2022,ZZH707225,1,6967,Wilde Consultants Ltd,150000,Consultancy   ,Professional Fees,Services to Place,Design Frmwk Staff," 87,880.00 ",401020,11965
06/05/2022,ZZH707226,1,6967,Wilde Consultants Ltd,150000,Consultancy   ,Professional Fees,Services to Place,Design Frmwk Staff," 82,680.00 ",401020,11965
06/05/2022,ZZH707227,1,6967,Wilde Consultants Ltd,150000,Consultancy   ,Professional Fees,Services to Place,Design Frmwk Staff," 43,940.00 ",401020,11965
06/05/2022,ZZH707228,1,3292,Reach Publishing Services Ltd,190000,Facilities & Management Services  ,Publicity and Promotion,Services to Place,Rechargeable work," 18,400.00 ",401800,11961
06/05/2022,ZZH707232,1,5214,WSP GROUP PLC,390000,Supplies and services,Supplies and services,#N/A,#N/A," 9,250.00 ",401600,C.01468.201
06/05/2022,ZZH707234,1,11715,CBRE,390000,Supplies and services,Supplies and services,#N/A,#N/A," 223,696.00 ",401600,C.00403
06/05/2022,ZZH707235,1,11715,CBRE,390000,Supplies and services,Supplies and services,#N/A,#N/A," 105,405.00 ",401600,C.00403
06/05/2022,ZZH707238,1,14196,Grassroots Recruitment Ltd,999999,UNCLASSIFIED  ,MISCLASSIFIED? CHECK BEFORE PUBLICATION,Services to Place,Invest in Growth," 7,519.35 ",100100,10091
09/05/2022,ZZH707285,1,11656,School ICT Services Ltd,390000,"Works - Construction, Repair & Maintenance  ",Fees and Charges,Corporate and Support Services,IT SIMS," 8,737.00 ",401017,10422
09/05/2022,ZZH707301,1,13414,Horizon Care & Education Group,261500,Human Resources Training & Conferences ,Fees and Charges,Services to People,SEN Independent Sch," 99,231.00 ",401024,10372
10/05/2022,ZZH707366,1,11860,DATA SPACE (UK) Ltd,190000,Facilities & Management Services  ,Office Expenses,Corporate and Support Services,Info & Governance," 20,000.00 ",400703,11146
11/05/2022,ZZH707419,1,15136,Wonder Why Learning,261500,Human Resources Training & Conferences ,Fees and Charges,Services to People,SEN Specific support," 6,000.00 ",401024,10300
11/05/2022,ZZH707438,1,3529,Totally Local Company Ltd,390000,"Works - Construction, Repair & Maintenance  ",Capital Expenditure - Works,#N/A,#N/A," 10,072.48 ",200304,C.01280.203
11/05/2022,ZZH707440,1,3529,Totally Local Company Ltd,390000,Supplies and services,Supplies and services,#N/A,#N/A," 7,980.50 ",401600,C.00880.203
12/05/2022,ZZH707474,1,1339,Stockport NHS Foundation Trust,999999,Fees and Charges,Fees and Charges,Services to People,EHP Children Ctrs Ce," 243,286.00 ",402404,10122
12/05/2022,ZZH707492,1,8025,CAREFLEX,181800,Environmental Services Technical Equipment ,Furniture and Equipment,Services to People,SEN Equipment," 5,211.60 ",400110,10324
12/05/2022,ZZH707506,1,6967,Wilde Consultants Ltd,390000,"Works - Construction, Repair & Maintenance  ",Repairs and Maintenance,#N/A,#N/A," 16,668.08 ",200123,C.10394.251
12/05/2022,ZZH707507,1,6967,Wilde Consultants Ltd,390000,"Works - Construction, Repair & Maintenance  ",Repairs and Maintenance,#N/A,#N/A," 18,654.38 ",200123,C.10382.251
13/05/2022,ZZH707522,1,11715,CBRE,390000,Supplies and services,Supplies and services,#N/A,#N/A," 223,696.00 ",401600,C.00621.201
13/05/2022,ZZH707523,1,11715,CBRE,390000,Supplies and services,Supplies and services,#N/A,#N/A," 105,405.00 ",401600,C.00621.203
13/05/2022,ZZH707538,1,12816,Eversheds Sutherland (Internat,999999,Acquisition of Land and Buildings,Capital Expenditure - Acquisitions,#N/A,#N/A," 10,172.00 ",200300,C.01278.201
13/05/2022,ZZH707545,1,3529,Totally Local Company Ltd,390000,"Works - Construction, Repair & Maintenance  ",Capital Expenditure - Works,Services to Place,Minor works/TRO Moni," 8,939.55 ",200304,12845
13/05/2022,ZZH707547,1,7025,CBRE Limited,150000,Consultancy   ,Professional Fees,Services to Place,Merseyway Shop Ctre," 37,500.00 ",401020,12866
13/05/2022,ZZH707564,1,15149,Forward (Stockport LGBT Centre,320000,Social Community Care Supplies & Services  ,Third party payments - Private/Voluntary Sector,Corporate and Support Services,Com. Invest Fund," 2,500.00 ",402403,12979
13/05/2022,ZZH707564,2,15149,Forward (Stockport LGBT Centre,320000,Social Community Care Supplies & Services  ,Third party payments - Private/Voluntary Sector,Corporate and Support Services,Com. Invest Fund," 2,500.00 ",402403,12979
13/05/2022,ZZH707564,3,15149,Forward (Stockport LGBT Centre,320000,Social Community Care Supplies & Services  ,Third party payments - Private/Voluntary Sector,Corporate and Support Services,Com. Invest Fund," 2,500.00 ",402403,12979
13/05/2022,ZZH707564,4,15149,Forward (Stockport LGBT Centre,320000,Social Community Care Supplies & Services  ,Third party payments - Private/Voluntary Sector,Corporate and Support Services,Com. Invest Fund," 2,500.00 ",402403,12979
13/05/2022,ZZH707564,5,15149,Forward (Stockport LGBT Centre,320000,Social Community Care Supplies & Services  ,Third party payments - Private/Voluntary Sector,Corporate and Support Services,Com. Invest Fund, 900.00 ,402403,12979
13/05/2022,ZZH707564,6,15149,Forward (Stockport LGBT Centre,320000,Social Community Care Supplies & Services  ,Third party payments - Private/Voluntary Sector,Corporate and Support Services,Com. Invest Fund," 1,000.00 ",402403,12979
13/05/2022,ZZH707576,1,5292,NPOWER (Electricity),370000,Utilities   ,Utilities,Services to Place,Street Lighting Ener," 1,800,000.00 ",200514,12031
16/05/2022,ZZH707577,1,14663,CHILD ACTION NORTHWEST,999999,Fees and Charges,Fees and Charges,Services to People,YOS Non-Staffing," 6,000.00 ",402404,11503
16/05/2022,ZZH707578,1,14143,UK Military Mentors Ltd,290000,Arts & Leisure Services  ,Publicity and Promotion,Services to People,GMCA CS Grant," 7,614.00 ",401801,11505
16/05/2022,ZZH707579,1,12619,Sue Hawkins,999999,Fees and Charges,Fees and Charges,Services to People,Yth Justice EarlyInt," 8,000.00 ",402404,11787
16/05/2022,ZZH707580,1,12856,Manchester United Foundation,290000,Arts & Leisure Services  ,Publicity and Promotion,Services to People,GMCA CS Grant," 9,590.00 ",401801,11505
16/05/2022,ZZH707582,1,12024,REMEDI - RESTORATIVE SERVICES,999999,Fees and Charges,Fees and Charges,Services to People,YOS Non-Staffing," 47,396.00 ",402404,11503
16/05/2022,ZZH707583,1,13451,HM Prison and Probation Servic,320000,Social Community Care Supplies & Services  ,Care Payments,Services to People,YJB Remand Grant," 250,000.00 ",530325,11487
16/05/2022,ZZH707584,1,13415,Matthew Hatton,290000,Arts & Leisure Services  ,Publicity and Promotion,Services to People,GMCA CS Grant," 5,800.00 ",401801,11505
16/05/2022,ZZH707585,1,13674,Krishan Singh,290000,Arts & Leisure Services  ,Publicity and Promotion,Services to People,GMCA CS Grant," 33,000.00 ",401801,11505
16/05/2022,ZZH707586,1,12937,City in the Community Foundati,290000,Arts & Leisure Services  ,Publicity and Promotion,Services to People,GMCA CS Grant," 8,000.00 ",401801,11505
16/05/2022,ZZH707588,1,9709,CERA Ltd,290000,Arts & Leisure Services  ,Publicity and Promotion,Services to People,GMCA CS Grant," 8,000.00 ",401801,11505
16/05/2022,ZZH707589,1,12686,Di Clarke,999999,Fees and Charges,Fees and Charges,Services to People,Yth Justice EarlyInt," 5,000.00 ",402404,11787
16/05/2022,ZZH707590,1,1255,Millercare Ltd,181800,Environmental Services Technical Equipment ,Furniture and Equipment,Services to People,SADLs Service," 7,695.32 ",400110,12530
16/05/2022,ZZH707628,1,2479,JR Foy and Son Ltd,390000,"Works - Construction, Repair & Maintenance  ",Repairs and Maintenance,Services to Place,Contin Educ Service," 31,912.00 ",200110,10511
16/05/2022,ZZH707633,1,13860,Howard Lynn Property Ltd,261400,Human Resources Temporary & Agency Staff ,Agency Staff,Services to Place,Property Client Acct," 5,378.70 ",100290,12328
16/05/2022,ZZH707634,1,13223,A Pacini Ltd,261400,Human Resources Temporary & Agency Staff ,Agency Staff,Services to Place,Property Client Acct," 5,378.70 ",100290,12328
16/05/2022,ZZH707643,1,1669,Charnwood Nursery,321115,Social Community Care Supplies & Services Children Childcare Services,Expenses and Allowances,Services to People,Early Years SEN, -   ,402210,12942
16/05/2022,ZZH707643,1,1669,Charnwood Nursery,321115,Social Community Care Supplies & Services Children Childcare Services,Expenses and Allowances,Services to People,Early Years SEN," 17,700.00 ",402210,12942
16/05/2022,ZZH707643,1,1669,Charnwood Nursery,261500,Human Resources Training & Conferences ,Fees and Charges,Services to People,SEN Independent Sch," 129,800.00 ",401024,10372
16/05/2022,ZZH707647,1,15149,Forward (Stockport LGBT Centre,320000,Social Community Care Supplies & Services  ,Third party payments - Private/Voluntary Sector,Corporate and Support Services,Com. Invest Fund," 1,750.00 ",402403,12979
16/05/2022,ZZH707647,2,15149,Forward (Stockport LGBT Centre,320000,Social Community Care Supplies & Services  ,Third party payments - Private/Voluntary Sector,Corporate and Support Services,Com. Invest Fund," 1,750.00 ",402403,12979
16/05/2022,ZZH707647,3,15149,Forward (Stockport LGBT Centre,320000,Social Community Care Supplies & Services  ,Third party payments - Private/Voluntary Sector,Corporate and Support Services,Com. Invest Fund," 1,750.00 ",402403,12979
16/05/2022,ZZH707647,4,15149,Forward (Stockport LGBT Centre,320000,Social Community Care Supplies & Services  ,Third party payments - Private/Voluntary Sector,Corporate and Support Services,Com. Invest Fund," 1,750.00 ",402403,12979
16/05/2022,ZZH707647,5,15149,Forward (Stockport LGBT Centre,320000,Social Community Care Supplies & Services  ,Third party payments - Private/Voluntary Sector,Corporate and Support Services,Com. Invest Fund, 900.00 ,402403,12979
16/05/2022,ZZH707647,6,15149,Forward (Stockport LGBT Centre,320000,Social Community Care Supplies & Services  ,Third party payments - Private/Voluntary Sector,Corporate and Support Services,Com. Invest Fund," 1,000.00 ",402403,12979
16/05/2022,ZZH707652,1,15154,Parrswood High School,170000,Education  ,Third party payments - Public Sector,Services to People,OLA pupils," 8,420.00 ",500304,10371
16/05/2022,ZZH707653,1,15154,Parrswood High School,170000,Education  ,Third party payments - Public Sector,Services to People,OLA pupils," 13,023.33 ",500304,10371
16/05/2022,ZZH707654,1,15154,Parrswood High School,170000,Education  ,Third party payments - Public Sector,Services to People,OLA pupils," 13,023.33 ",500304,10371
16/05/2022,ZZH707655,1,15154,Parrswood High School,170000,Education  ,Third party payments - Public Sector,Services to People,OLA pupils," 13,023.33 ",500304,10371
17/05/2022,ZZH707691,1,3529,Totally Local Company Ltd,390000,Supplies and services,Supplies and services,#N/A,#N/A," 13,063.24 ",401600,C.00621.203
17/05/2022,ZZH707700,1,10105,Mastercall Healthcare,390000,Supplies and services,Supplies and services,Services to People,PH-Communities," 51,000.00 ",401600,12738
17/05/2022,ZZH707735,1,5531,A COPELAND ELECTRICAL,390000,"Works - Construction, Repair & Maintenance  ",Repairs and Maintenance,#N/A,#N/A," 486,100.36 ",200123,C.10293.110
17/05/2022,ZZH707735,1,5531,A COPELAND ELECTRICAL,390000,"Works - Construction, Repair & Maintenance  ",Repairs and Maintenance,#N/A,#N/A," 486,100.36 ",200123,C.10293.237
17/05/2022,ZZH707736,1,13069,W H Good Ltd,390000,"Works - Construction, Repair & Maintenance  ",Repairs and Maintenance,#N/A,#N/A," 354,619.71 ",200123,C.10304.110
17/05/2022,ZZH707736,1,13069,W H Good Ltd,390000,"Works - Construction, Repair & Maintenance  ",Repairs and Maintenance,#N/A,#N/A," 354,619.71 ",200123,C.10304.237
17/05/2022,ZZH707737,1,2426,GR Bayley Ltd,390000,"Works - Construction, Repair & Maintenance  ",Repairs and Maintenance,#N/A,#N/A," 227,417.55 ",200123,C.10307.107
17/05/2022,ZZH707738,1,2426,GR Bayley Ltd,390000,"Works - Construction, Repair & Maintenance  ",Repairs and Maintenance,#N/A,#N/A," 354,619.71 ",200123,C.10304.110
17/05/2022,ZZH707738,1,2426,GR Bayley Ltd,390000,"Works - Construction, Repair & Maintenance  ",Repairs and Maintenance,#N/A,#N/A," 354,619.71 ",200123,C.10304.237
17/05/2022,ZZH707739,1,2426,GR Bayley Ltd,390000,"Works - Construction, Repair & Maintenance  ",Repairs and Maintenance,#N/A,#N/A," 113,708.78 ",200123,C.10304.237
17/05/2022,ZZH707739,1,2426,GR Bayley Ltd,390000,"Works - Construction, Repair & Maintenance  ",Repairs and Maintenance,#N/A,#N/A," 113,708.78 ",200123,C.10393.110
18/05/2022,ZZH707773,1,15149,Forward (Stockport LGBT Centre,320000,Social Community Care Supplies & Services  ,Third party payments - Private/Voluntary Sector,Corporate and Support Services,Com. Invest Fund," 1,250.00 ",402403,12979
18/05/2022,ZZH707773,2,15149,Forward (Stockport LGBT Centre,320000,Social Community Care Supplies & Services  ,Third party payments - Private/Voluntary Sector,Corporate and Support Services,Com. Invest Fund," 1,250.00 ",402403,12979
18/05/2022,ZZH707773,3,15149,Forward (Stockport LGBT Centre,320000,Social Community Care Supplies & Services  ,Third party payments - Private/Voluntary Sector,Corporate and Support Services,Com. Invest Fund," 1,250.00 ",402403,12979
18/05/2022,ZZH707773,4,15149,Forward (Stockport LGBT Centre,320000,Social Community Care Supplies & Services  ,Third party payments - Private/Voluntary Sector,Corporate and Support Services,Com. Invest Fund," 1,250.00 ",402403,12979
18/05/2022,ZZH707773,5,15149,Forward (Stockport LGBT Centre,320000,Social Community Care Supplies & Services  ,Third party payments - Private/Voluntary Sector,Corporate and Support Services,Com. Invest Fund, 900.00 ,402403,12979
18/05/2022,ZZH707773,6,15149,Forward (Stockport LGBT Centre,320000,Social Community Care Supplies & Services  ,Third party payments - Private/Voluntary Sector,Corporate and Support Services,Com. Invest Fund," 1,000.00 ",402403,12979
18/05/2022,ZZH707806,1,11497,ASK Autism,261500,Human Resources Training & Conferences ,Fees and Charges,Services to People,ASD Service," 8,856.00 ",401024,12742
18/05/2022,ZZH707827,1,11585,Trinity Christian School,261500,Human Resources Training & Conferences ,Fees and Charges,Services to People,SEN Specific support," 6,054.30 ",401024,10300
18/05/2022,ZZH707828,1,14476,One School Global,261500,Human Resources Training & Conferences ,Fees and Charges,Services to People,SEN Specific support," 6,487.00 ",401024,10300
18/05/2022,ZZH707832,1,14243,Keys PCE Ltd,261500,Human Resources Training & Conferences ,Fees and Charges,Services to People,SEN Independent Sch," 40,339.00 ",401024,10372
18/05/2022,ZZH707850,1,6748,GEORGE COX & SONS LTD,390000,Supplies and services,Supplies and services,#N/A,#N/A," 14,867.94 ",401600,C.01250.203
18/05/2022,ZZH707852,1,6116,Atkins Limited,390000,Supplies and services,Supplies and services,#N/A,#N/A," 102,081.00 ",401600,C.00403
19/05/2022,ZZH707856,1,3529,Totally Local Company Ltd,240000,Horticultural  ,Grounds Maintenance,Services to Place,Play," 18,346.40 ",202032,11267
19/05/2022,ZZH707868,1,15135,Built Environment Networking L,290000,Arts & Leisure Services  ,Publicity and Promotion,Services to Place,MDC Mayoral DC," 5,000.00 ",401801,13033
19/05/2022,ZZH707878,1,6283,CLEAPSS,200000,Financial Services  ,Fees and Charges,Services to People,SI - Advisers," 5,048.04 ",402401,10727
20/05/2022,ZZH707951,1,14898,Penna PLC,150000,Consultancy   ,Professional Fees,Services to People,Adults Management," 144,430.00 ",401007,11873
20/05/2022,ZZH707958,1,2632,Concept Elevators NW Ltd,390000,"Works - Construction, Repair & Maintenance  ",Repairs and Maintenance,Services to People,Dis Svce:Domest Lift," 43,000.00 ",200125,11660
23/05/2022,ZZH708006,1,1342,UK Container Maintenance Ltd,182020,Environmental Services Waste Management,Waste Management Equipment,Services to Place,Bulk Container," 6,006.00 ",400401,10883
23/05/2022,ZZH708006,2,1342,UK Container Maintenance Ltd,182020,Environmental Services Waste Management,Waste Management Equipment,Services to Place,Bulk Container, 736.80 ,400401,10883
23/05/2022,ZZH708006,3,1342,UK Container Maintenance Ltd,182020,Environmental Services Waste Management,Waste Management Equipment,Services to Place,Bulk Container, 368.40 ,400401,10883
23/05/2022,ZZH708026,1,4369,Pennine Care NHS Trust,999999,Fees and Charges,Fees and Charges,Services to People,SNC," 5,711.94 ",402404,12929
23/05/2022,ZZH708027,1,15166,NHS Property Services Ltd,202000,Financial Services Rents ,Rents,Services to People,LDRC Day Centre," 237,000.00 ",200700,12227
23/05/2022,ZZH708028,1,6748,GEORGE COX & SONS LTD,280000,Legal Services  ,Legal Fees,#N/A,#N/A," 97,187.67 ",401016,C.01280.203
23/05/2022,ZZH708030,1,3529,Totally Local Company Ltd,390000,Supplies and services,Supplies and services,#N/A,#N/A," 7,980.50 ",401600,C.00621.203
23/05/2022,ZZH708085,1,15165,United Stockport Circuit,#N/A,#N/A,#N/A,Services to People,PH-Test & Trace," 41,666.66 ",200999,13080
24/05/2022,ZZH708110,1,10874,SEP (Survey & Engineering Proj,390000,"Works - Construction, Repair & Maintenance  ",Capital Expenditure - Works,#N/A,#N/A," 6,200.00 ",200304,C.00904.203
24/05/2022,ZZH708111,1,10019,Access UK Ltd,270000,Information Communication Technology  ,Information and Communications Technology,Corporate and Support Services,Mangt Accounting," 27,300.00 ",402001,12872
24/05/2022,ZZH708111,2,10019,Access UK Ltd,270000,Information Communication Technology  ,Information and Communications Technology,Corporate and Support Services,Mangt Accounting," 2,000.00 ",402001,12872
24/05/2022,ZZH708111,3,10019,Access UK Ltd,270000,Information Communication Technology  ,Information and Communications Technology,Corporate and Support Services,Mangt Accounting," 1,250.00 ",402001,12872
24/05/2022,ZZH708111,4,10019,Access UK Ltd,270000,Information Communication Technology  ,Information and Communications Technology,Corporate and Support Services,Mangt Accounting," 9,000.00 ",402001,12872
24/05/2022,ZZH708111,5,10019,Access UK Ltd,270000,Information Communication Technology  ,Information and Communications Technology,Corporate and Support Services,Mangt Accounting," 1,600.00 ",402001,12872
24/05/2022,ZZH708120,1,1722,The Together Trust Centre,261500,Human Resources Training & Conferences ,Fees and Charges,Services to People,SEN NMSS School Fees," 61,200.00 ",401024,12710
24/05/2022,ZZH708121,1,12180,Acorn Care and Education,261500,Human Resources Training & Conferences ,Fees and Charges,Services to People,SEN Independent Sch," 59,750.00 ",401024,10372
24/05/2022,ZZH708122,1,12180,Acorn Care and Education,261500,Human Resources Training & Conferences ,Fees and Charges,Services to People,SEN Independent Sch," 77,500.00 ",401024,10372
24/05/2022,ZZH708123,1,12180,Acorn Care and Education,261500,Human Resources Training & Conferences ,Fees and Charges,Services to People,SEN Independent Sch," 59,750.00 ",401024,10372
25/05/2022,ZZH708174,1,6049,"TLC: Talk, Listen, Change",390000,Supplies and services,Supplies and services,Services to People,Domestic Abuse," 399,961.00 ",401600,12852
25/05/2022,ZZH708175,1,11958,PIPER HILL SCHOOL,170000,Education  ,Third party payments - Public Sector,Services to People,OLA pupils," 9,300.00 ",500304,10371
25/05/2022,ZZH708179,1,1669,Charnwood Nursery,261500,Human Resources Training & Conferences ,Fees and Charges,Services to People,SEN Independent Sch," 39,372.36 ",401024,10372
25/05/2022,ZZH708181,1,11958,PIPER HILL SCHOOL,170000,Education  ,Third party payments - Public Sector,Services to People,OLA pupils," 8,200.00 ",500304,10371
25/05/2022,ZZH708182,1,11958,PIPER HILL SCHOOL,170000,Education  ,Third party payments - Public Sector,Services to People,OLA pupils," 8,200.00 ",500304,10371
25/05/2022,ZZH708183,1,11958,PIPER HILL SCHOOL,170000,Education  ,Third party payments - Public Sector,Services to People,OLA pupils," 8,200.00 ",500304,10371
25/05/2022,ZZH708186,1,4463,Reach Publishing Serv (MEN),999999,Fees and Charges,Fees and Charges,Services to Place,Planning," 30,000.00 ",401036,12150
26/05/2022,ZZH708261,1,9567,Frontline Data ltd,270000,Information Communication Technology  ,Information and Communications Technology,Corporate and Support Services,Traded Services," 44,295.75 ",402001,11735
26/05/2022,ZZH708267,1,14666,Reflex Systems Limited,192200,Facilities & Management Services Security ,Security,Services to Place,SPB Operational Est.," 21,813.64 ",201204,11662
27/05/2022,ZZH708270,1,3529,Totally Local Company Ltd,240000,Horticultural  ,Grounds Maintenance,Services to Place,Policy-Rights Of Way," 15,000.00 ",202030,10088
27/05/2022,ZZH708272,1,6116,Atkins Limited,150000,Consultancy   ,Professional Fees,Services to Place,Network Management," 45,988.80 ",401020,13179
27/05/2022,ZZH708275,1,3529,Totally Local Company Ltd,240000,Horticultural  ,Grounds Maintenance,Services to Place,Policy-Rights Of Way," 10,000.00 ",202030,10088
27/05/2022,ZZH708276,1,15162,David Ricketts,390000,Supplies and services,Supplies and services,#N/A,#N/A," 13,436.00 ",401600,C.00466.203
27/05/2022,ZZH708277,1,757,Transport for Greater Manchest,181800,Environmental Services Technical Equipment ,Furniture and Equipment,#N/A,#N/A," 11,449.00 ",400110,C.00403
27/05/2022,ZZH708281,1,4463,Reach Publishing Serv (MEN),230000,Highway Equipment & Materials�   ,Highways Maintenance,Services to Place,A6 Marr Maintenance," 5,000.00 ",202050,13039
27/05/2022,ZZH708282,1,8759,VAISALA  LTD,390000,"Works - Construction, Repair & Maintenance  ",Repairs and Maintenance,Services to Place,Gritting," 5,000.00 ",200123,12033
27/05/2022,ZZH708283,1,14325,Ivanti UK Limited,270000,Information Communication Technology  ,Information and Communications Technology,Corporate and Support Services,IT Infrastructure," 8,148.60 ",402002,11324
27/05/2022,ZZH708283,2,14325,Ivanti UK Limited,270000,Information Communication Technology  ,Information and Communications Technology,Corporate and Support Services,IT Infrastructure," 4,527.00 ",402002,11324
27/05/2022,ZZH708296,1,8106,Tarmac Trading Ltd,390000,Supplies and services,Supplies and services,#N/A,#N/A," 39,796.19 ",401600,C.00403
27/05/2022,ZZH708334,1,6967,Wilde Consultants Ltd,150000,Consultancy   ,Professional Fees,Services to Place,Network Assets Staff," 41,340.00 ",401020,11959
27/05/2022,ZZH708335,1,6967,Wilde Consultants Ltd,150000,Consultancy   ,Professional Fees,Services to Place,Network Assets Staff," 26,000.00 ",401020,11959
30/05/2022,ZZH708357,1,3750,TheNational Trust(Enterprises),150000,Consultancy   ,Professional Fees,Services to Place,U-Lyme Park & Hall," 1,002,711.00 ",401007,11379
30/05/2022,ZZH708363,1,3529,Totally Local Company Ltd,390000,Supplies and services,Supplies and services,Services to Place,Nature-Arboriculture, 120.00 ,401600,11281
30/05/2022,ZZH708363,2,3529,Totally Local Company Ltd,390000,Supplies and services,Supplies and services,Services to Place,Nature-Arboriculture, 280.00 ,401600,11281
30/05/2022,ZZH708363,3,3529,Totally Local Company Ltd,390000,Supplies and services,Supplies and services,Services to Place,Nature-Arboriculture, 950.00 ,401600,11281
30/05/2022,ZZH708363,4,3529,Totally Local Company Ltd,390000,Supplies and services,Supplies and services,Services to Place,Nature-Arboriculture," 2,985.00 ",401600,11281
30/05/2022,ZZH708363,5,3529,Totally Local Company Ltd,390000,Supplies and services,Supplies and services,Services to Place,Nature-Arboriculture, 707.00 ,401600,11281
30/05/2022,ZZH708364,1,3529,Totally Local Company Ltd,390000,"Works - Construction, Repair & Maintenance  ",Capital Expenditure - Works,#N/A,#N/A," 7,950.00 ",200304,C.00403
30/05/2022,ZZH708366,1,3529,Totally Local Company Ltd,390000,Supplies and services,Supplies and services,#N/A,#N/A," 23,479.34 ",401600,C.01320.203
30/05/2022,ZZH708367,1,5214,WSP GROUP PLC,150000,Consultancy   ,Professional Fees,Services to Place,Local Plan Project," 48,307.37 ",401007,12936
30/05/2022,ZZH708370,1,11615,Healthwatch Stockport,999999,Social Community Care Supplies & Services  ,Service Contract Payments,Services to People,Healthwatch," 150,000.00 ",561704,13173
30/05/2022,ZZH708389,1,15055,Heathlands Nursery Primary and,170000,Education  ,Third party payments - Public Sector,Services to People,OLA pupils," 41,274.00 ",500304,10371
30/05/2022,ZZH708390,1,15055,Heathlands Nursery Primary and,170000,Education  ,Third party payments - Public Sector,Services to People,OLA pupils," 40,284.00 ",500304,10371
30/05/2022,ZZH708399,1,14563,New Park Academy,170000,Education  ,Third party payments - Public Sector,Services to People,OLA pupils," 22,500.00 ",500304,10371
30/05/2022,ZZH708402,1,14659,Alder King LLP,150000,Consultancy   ,Professional Fees,Services to Place,Local Plan Project," 14,771.00 ",401007,12936
30/05/2022,ZZH708413,1,12816,Eversheds Sutherland (Internat,150000,Consultancy   ,Professional Fees,Services to Place,MDC Mayoral DC," 5,000.00 ",401007,13033
30/05/2022,ZZH708416,1,14724,Project Plan Services,270000,Information Communication Technology  ,Information and Communications Technology,Corporate and Support Services,Strategy & Design," 12,500.00 ",402001,12642
30/05/2022,ZZH708416,2,14724,Project Plan Services,270000,Information Communication Technology  ,Information and Communications Technology,Corporate and Support Services,Strategy & Design," 6,500.00 ",402001,12642
30/05/2022,ZZH708433,1,13392,ClearSkies Software,270000,Information Communication Technology  ,Information and Communications Technology,Services to Place,Berevement Services," 2,300.00 ",402001,11285
30/05/2022,ZZH708433,2,13392,ClearSkies Software,270000,Information Communication Technology  ,Information and Communications Technology,Services to Place,Berevement Services," 5,500.00 ",402001,11285
31/05/2022,ZZH708466,1,1799,Stockport Homes,150000,Consultancy   ,Professional Fees,Services to People,Brinnigton CC," 9,000.00 ",401007,12295
31/05/2022,ZZH708501,1,865,Bethell Construction Ltd,390000,Supplies and services,Supplies and services,#N/A,#N/A," 496,922.47 ",401600,C.01179.203
31/05/2022,ZZH708502,1,939,BT Redcare,270000,Information Communication Technology  ,Information and Communications Technology,Services to Place,CCTV-Control," 107,225.68 ",402008,12822
31/05/2022,ZZH708503,1,6967,Wilde Consultants Ltd,150000,Consultancy   ,Professional Fees,Services to Place,Network Assets Staff," 41,340.00 ",401020,11959
31/05/2022,ZZH708504,1,6967,Wilde Consultants Ltd,150000,Consultancy   ,Professional Fees,Services to Place,Network Assets Staff," 41,340.00 ",401020,11959
31/05/2022,ZZH708505,1,11466,High Peak School Ltd,261500,Human Resources Training & Conferences ,Fees and Charges,Services to People,SEN Independent Sch," 15,861.33 ",401024,10372
01/06/2022,ZZH708511,1,10897,Three Sixty SHG Ltd,390000,"Works - Construction, Repair & Maintenance  ",Repairs and Maintenance,Services to Place,CCTV-Control," 281,403.00 ",200160,12822
01/06/2022,ZZH708521,1,4369,Pennine Care NHS Trust,999999,UNCLASSIFIED  ,MISCLASSIFIED? CHECK BEFORE PUBLICATION,Services to People,LD Health Staff," 60,000.00 ",100115,12674
01/06/2022,ZZH708524,1,7802,Craemer UK Ltd,182020,Environmental Services Waste Management,Waste Management Equipment,Services to Place,Wheelie Bins," 14,742.00 ",400401,10864
01/06/2022,ZZH708525,1,15175,Wybone Limited,350000,Street & Traffic Management  ,Fixtures and Fittings,Services to Place,Public Realm Inspect," 25,250.00 ",201202,10879
01/06/2022,ZZH708545,1,4369,Pennine Care NHS Trust,999999,UNCLASSIFIED  ,MISCLASSIFIED? CHECK BEFORE PUBLICATION,Services to People,LD Health Staff," 51,000.00 ",100115,12674
01/06/2022,ZZH708552,1,13883,The Goodness Collective CIC,320000,Social Community Care Supplies & Services  ,Third party payments - Private/Voluntary Sector,Corporate and Support Services,Com. Invest Fund," 5,000.00 ",402403,12979
01/06/2022,ZZH708552,2,13883,The Goodness Collective CIC,320000,Social Community Care Supplies & Services  ,Third party payments - Private/Voluntary Sector,Corporate and Support Services,Com. Invest Fund," 5,000.00 ",402403,12979
01/06/2022,ZZH708553,1,15186,"Coffee, Chill and Spill",320000,Social Community Care Supplies & Services  ,Third party payments - Private/Voluntary Sector,Corporate and Support Services,Com. Invest Fund," 5,340.00 ",402403,12979
01/06/2022,ZZH708553,2,15186,"Coffee, Chill and Spill",320000,Social Community Care Supplies & Services  ,Third party payments - Private/Voluntary Sector,Corporate and Support Services,Com. Invest Fund," 5,340.00 ",402403,12979
06/06/2022,ZZH708562,1,35,CBC Computer Systems Ltd,270000,Information Communication Technology  ,Information and Communications Technology,Services to People,TM REaCH," 4,580.00 ",402001,12714
06/06/2022,ZZH708562,2,35,CBC Computer Systems Ltd,270000,Information Communication Technology  ,Information and Communications Technology,Services to People,TM REaCH, 519.00 ,402001,12714
06/06/2022,ZZH708568,1,9882,General Utilities Northwest,391114,"Works - Construction, Repair & Maintenance Buildings Surveys",Capital Expenditure - Fees,#N/A,#N/A," 6,525.00 ",200316,C.00403
06/06/2022,ZZH708586,1,176,Lexis Nexis UK,200000,Financial Services  ,Fees and Charges,Services to Place,Commercial Standards," 8,745.00 ",402401,10913
06/06/2022,ZZH708590,1,9587,FFT Education Ltd,150000,Consultancy   ,Professional Fees,Corporate and Support Services,Business Intelligenc," 17,261.30 ",401020,11872
06/06/2022,ZZH708591,1,35,CBC Computer Systems Ltd,270000,Information Communication Technology  ,Information and Communications Technology,Corporate and Support Services,Business Intelligenc," 4,836.00 ",402001,11872
06/06/2022,ZZH708591,2,35,CBC Computer Systems Ltd,270000,Information Communication Technology  ,Information and Communications Technology,Corporate and Support Services,Business Intelligenc, 224.00 ,402001,11872
06/06/2022,ZZH708591,3,35,CBC Computer Systems Ltd,270000,Information Communication Technology  ,Information and Communications Technology,Corporate and Support Services,Business Intelligenc, 244.00 ,402001,11872
06/06/2022,ZZH708615,1,1669,Charnwood Nursery,290000,Arts & Leisure Services  ,Publicity and Promotion,Services to People,EHP CC Belmont & L/H," 7,687.02 ",401801,12291
07/06/2022,ZZH708645,1,3529,Totally Local Company Ltd,390000,Supplies and services,Supplies and services,#N/A,#N/A," 20,000.00 ",401600,C.00403
08/06/2022,ZZH708693,1,15192,Cobalt Consulting (UK) Ltd,150000,Consultancy   ,Professional Fees,Services to Place,MDC Mayoral DC," 8,835.00 ",401007,13033
08/06/2022,ZZH708700,1,683,AECOM Limited,150000,Consultancy   ,Professional Fees,Services to Place,Feasibility," 24,322.96 ",401020,13062
08/06/2022,ZZH708702,1,15152,Mr Kevin Dowd,150000,Consultancy   ,Professional Fees,Services to People,SC - Broadfield," 4,500.00 ",401007,11443
08/06/2022,ZZH708702,1,15152,Mr Kevin Dowd,150000,Consultancy   ,Professional Fees,Services to People,SC - Dial Park," 4,500.00 ",401007,11447
08/06/2022,ZZH708708,1,4369,Pennine Care NHS Trust,999999,Fees and Charges,Fees and Charges,Services to People,SNC," 5,711.94 ",402404,12929
08/06/2022,ZZH708711,1,4369,Pennine Care NHS Trust,999999,UNCLASSIFIED  ,MISCLASSIFIED? CHECK BEFORE PUBLICATION,Services to People,LD Health Staff," 995,500.00 ",100115,12674
08/06/2022,ZZH708748,1,14669,Sapphire Utility Solutions Ltd,390000,"Works - Construction, Repair & Maintenance  ",Capital Expenditure - Works,#N/A,#N/A," 10,000.00 ",200304,C.01248.203
08/06/2022,ZZH708748,1,14669,Sapphire Utility Solutions Ltd,230000,Highway Equipment & Materials�   ,Highways Maintenance,Services to Place,Drainage Works," 11,395.83 ",202052,12681
08/06/2022,ZZH708749,1,8423,SMS Coaching Limited,261500,Human Resources Training & Conferences ,Fees and Charges,Services to People,SEN Independent Sch," 38,000.00 ",401024,10372
08/06/2022,ZZH708751,1,10985,Broadstones School Ltd,261500,Human Resources Training & Conferences ,Fees and Charges,Services to People,SEN Independent Sch," 33,800.00 ",401024,10372
08/06/2022,ZZH708752,1,10985,Broadstones School Ltd,261500,Human Resources Training & Conferences ,Fees and Charges,Services to People,SEN Independent Sch," 33,800.00 ",401024,10372
08/06/2022,ZZH708754,1,13551,Permanent Futures Ltd,150000,Consultancy   ,Professional Fees,Services to People,SEN Trans-Staffing," 33,000.00 ",401007,10759
08/06/2022,ZZH708755,1,11009,Nisai Virtual Academy Ltd,261500,Human Resources Training & Conferences ,Fees and Charges,Services to People,SEN Specific support," 33,500.00 ",401024,10300
09/06/2022,ZZH708777,1,14307,Mike Farrar Consulting Ltd,150000,Consultancy   ,Professional Fees,Corporate and Support Services,Chief Execs Office," 5,000.00 ",401007,11112
09/06/2022,ZZH708785,1,11897,SENSE CAS FINANCE TEAM,320000,Social Community Care Supplies & Services  ,Care Payments,Services to People,DP - Respite," 6,610.00 ",530335,11513
09/06/2022,ZZH708786,1,1722,The Together Trust Centre,320000,Social Community Care Supplies & Services  ,Care Payments,Services to People,DP - Respite," 5,600.00 ",530335,11513
09/06/2022,ZZH708804,1,15198,Ian Donovan,320000,Social Community Care Supplies & Services  ,Third party payments - Private/Voluntary Sector,Services to Place,Heritage Underbanks," 12,926.00 ",402403,12938
09/06/2022,ZZH708805,1,7025,CBRE Limited,150000,Consultancy   ,Professional Fees,Services to Place,Town Centre Devt Tea," 56,010.00 ",401020,10072
09/06/2022,ZZH708806,1,11715,CBRE,150000,Consultancy   ,Professional Fees,Services to Place,MDC Mayoral DC," 18,676.08 ",401007,13033
09/06/2022,ZZH708812,1,11525,New Local Ltd,150000,Consultancy   ,Professional Fees,Corporate and Support Services,Chief Execs Office," 12,449.00 ",401007,11112
10/06/2022,ZZH708827,1,14317,Ridge and Partners LLP,390000,"Works - Construction, Repair & Maintenance  ",Repairs and Maintenance,#N/A,#N/A," 19,924.00 ",200123,C.10316.250
10/06/2022,ZZH708827,2,14317,Ridge and Partners LLP,390000,"Works - Construction, Repair & Maintenance  ",Repairs and Maintenance,#N/A,#N/A," 23,480.00 ",200123,C.10329.250
10/06/2022,ZZH708827,3,14317,Ridge and Partners LLP,390000,"Works - Construction, Repair & Maintenance  ",Repairs and Maintenance,#N/A,#N/A," 16,506.00 ",200123,C.10385.250
10/06/2022,ZZH708827,4,14317,Ridge and Partners LLP,390000,"Works - Construction, Repair & Maintenance  ",Repairs and Maintenance,#N/A,#N/A," 24,716.00 ",200123,C.10385.250
10/06/2022,ZZH708827,5,14317,Ridge and Partners LLP,390000,"Works - Construction, Repair & Maintenance  ",Repairs and Maintenance,#N/A,#N/A," 10,784.00 ",200123,C.10336.251
10/06/2022,ZZH708827,6,14317,Ridge and Partners LLP,390000,"Works - Construction, Repair & Maintenance  ",Repairs and Maintenance,#N/A,#N/A," 6,668.00 ",200123,C.10427.109
10/06/2022,ZZH708827,7,14317,Ridge and Partners LLP,390000,"Works - Construction, Repair & Maintenance  ",Repairs and Maintenance,#N/A,#N/A," 4,906.00 ",200123,C.10408.124
10/06/2022,ZZH708828,1,13862,David Trowler Associates,390000,"Works - Construction, Repair & Maintenance  ",Repairs and Maintenance,#N/A,#N/A," 7,930.00 ",200123,C.10316.250
10/06/2022,ZZH708828,2,13862,David Trowler Associates,390000,"Works - Construction, Repair & Maintenance  ",Repairs and Maintenance,#N/A,#N/A," 3,070.00 ",200123,C.10329.250
10/06/2022,ZZH708828,3,13862,David Trowler Associates,390000,"Works - Construction, Repair & Maintenance  ",Repairs and Maintenance,#N/A,#N/A," 3,070.00 ",200123,C.10385.250
10/06/2022,ZZH708828,4,13862,David Trowler Associates,390000,"Works - Construction, Repair & Maintenance  ",Repairs and Maintenance,#N/A,#N/A," 4,530.00 ",200123,C.10385.250
10/06/2022,ZZH708828,5,13862,David Trowler Associates,390000,"Works - Construction, Repair & Maintenance  ",Repairs and Maintenance,#N/A,#N/A," 14,675.00 ",200123,C.10336.251
10/06/2022,ZZH708828,6,13862,David Trowler Associates,390000,"Works - Construction, Repair & Maintenance  ",Repairs and Maintenance,#N/A,#N/A," 12,625.00 ",200123,C.10408.124
10/06/2022,ZZH708828,7,13862,David Trowler Associates,390000,"Works - Construction, Repair & Maintenance  ",Repairs and Maintenance,#N/A,#N/A," 9,925.00 ",200123,C.10408.124
10/06/2022,ZZH708841,1,14262,Depaul UK,320000,Social Community Care Supplies & Services  ,Care Payments,Services to People,SC - Leaving Care," 168,000.00 ",530330,11501
10/06/2022,ZZH708883,1,757,Transport for Greater Manchest,320000,Social Community Care Supplies & Services  ,Third party payments - Private/Voluntary Sector,#N/A,#N/A," 3,000,000.00 ",402403,C.10997.001
13/06/2022,ZZH708915,1,13709,SMBC WHITEHILL PRIMARY SCHOOL,260000,Human Resources  ,Other Payments,Services to People,SI M&B Grant," 10,387.29 ",100304,13041
13/06/2022,ZZH708916,1,1339,Stockport NHS Foundation Trust,150000,Consultancy   ,Professional Fees,Services to People,SI M&B Grant," 63,420.00 ",401020,13041
13/06/2022,ZZH708922,1,14476,One School Global,170000,Education  ,Third party payments - Public Sector,Services to People,OLA pupils," 20,654.24 ",500304,10371
13/06/2022,ZZH708923,1,4083,Hulme Hall School,261500,Human Resources Training & Conferences ,Fees and Charges,Services to People,SEN Specific support," 19,150.00 ",401024,10300
13/06/2022,ZZH708932,1,15139,NT&AS,320000,Social Community Care Supplies & Services  ,Third party payments - Private/Voluntary Sector,Services to People,Top-up Fund Post 16," 20,631.00 ",402403,12724
13/06/2022,ZZH708941,1,12719,We Care NW Ltd,320000,Social Community Care Supplies & Services  ,Third party payments - Private/Voluntary Sector,Corporate and Support Services,Com. Invest Fund," 6,514.75 ",402403,12979
13/06/2022,ZZH708941,2,12719,We Care NW Ltd,320000,Social Community Care Supplies & Services  ,Third party payments - Private/Voluntary Sector,Corporate and Support Services,Com. Invest Fund," 6,514.75 ",402403,12979
13/06/2022,ZZH708941,3,12719,We Care NW Ltd,320000,Social Community Care Supplies & Services  ,Third party payments - Private/Voluntary Sector,Corporate and Support Services,Com. Invest Fund," 6,514.75 ",402403,12979
13/06/2022,ZZH708941,4,12719,We Care NW Ltd,320000,Social Community Care Supplies & Services  ,Third party payments - Private/Voluntary Sector,Corporate and Support Services,Com. Invest Fund," 6,514.75 ",402403,12979
13/06/2022,ZZH708949,1,3529,Totally Local Company Ltd,390000,Supplies and services,Supplies and services,Services to Place,Emergency Tree Works," 10,850.00 ",401600,11168
13/06/2022,ZZH708959,1,3529,Totally Local Company Ltd,240000,Horticultural  ,Grounds Maintenance,Services to Place,Closed Church Yards," 8,526.00 ",202030,12950
13/06/2022,ZZH708969,1,9992,Reheat (Renewable Technologies,150000,Consultancy   ,Professional Fees,Non-General Fund Items,HRA Strategic Mgt," 45,860.31 ",401020,12175
14/06/2022,ZZH708979,1,12719,We Care NW Ltd,320000,Social Community Care Supplies & Services  ,Third party payments - Private/Voluntary Sector,Corporate and Support Services,Com. Invest Fund," 2,500.00 ",402403,12979
14/06/2022,ZZH708979,2,12719,We Care NW Ltd,320000,Social Community Care Supplies & Services  ,Third party payments - Private/Voluntary Sector,Corporate and Support Services,Com. Invest Fund," 2,500.00 ",402403,12979
14/06/2022,ZZH708979,3,12719,We Care NW Ltd,320000,Social Community Care Supplies & Services  ,Third party payments - Private/Voluntary Sector,Corporate and Support Services,Com. Invest Fund," 2,500.00 ",402403,12979
14/06/2022,ZZH708979,4,12719,We Care NW Ltd,320000,Social Community Care Supplies & Services  ,Third party payments - Private/Voluntary Sector,Corporate and Support Services,Com. Invest Fund," 2,500.00 ",402403,12979
14/06/2022,ZZH708979,5,12719,We Care NW Ltd,320000,Social Community Care Supplies & Services  ,Third party payments - Private/Voluntary Sector,Corporate and Support Services,Com. Invest Fund, 900.00 ,402403,12979
14/06/2022,ZZH708979,6,12719,We Care NW Ltd,320000,Social Community Care Supplies & Services  ,Third party payments - Private/Voluntary Sector,Corporate and Support Services,Com. Invest Fund," 1,000.00 ",402403,12979
14/06/2022,ZZH708998,1,12239,Shoosmiths LLP,280000,Legal Services  ,Legal Fees,Corporate and Support Services,Legal Fees Budget," 7,516.00 ",401016,12271
14/06/2022,ZZH708999,1,12719,We Care NW Ltd,320000,Social Community Care Supplies & Services  ,Third party payments - Private/Voluntary Sector,Corporate and Support Services,Com. Invest Fund," 1,750.00 ",402403,12979
14/06/2022,ZZH708999,2,12719,We Care NW Ltd,320000,Social Community Care Supplies & Services  ,Third party payments - Private/Voluntary Sector,Corporate and Support Services,Com. Invest Fund," 1,750.00 ",402403,12979
14/06/2022,ZZH708999,3,12719,We Care NW Ltd,320000,Social Community Care Supplies & Services  ,Third party payments - Private/Voluntary Sector,Corporate and Support Services,Com. Invest Fund," 1,750.00 ",402403,12979
14/06/2022,ZZH708999,4,12719,We Care NW Ltd,320000,Social Community Care Supplies & Services  ,Third party payments - Private/Voluntary Sector,Corporate and Support Services,Com. Invest Fund," 1,750.00 ",402403,12979
14/06/2022,ZZH708999,5,12719,We Care NW Ltd,320000,Social Community Care Supplies & Services  ,Third party payments - Private/Voluntary Sector,Corporate and Support Services,Com. Invest Fund, 900.00 ,402403,12979
14/06/2022,ZZH708999,6,12719,We Care NW Ltd,320000,Social Community Care Supplies & Services  ,Third party payments - Private/Voluntary Sector,Corporate and Support Services,Com. Invest Fund," 1,000.00 ",402403,12979
14/06/2022,ZZH709000,1,3529,Totally Local Company Ltd,240000,Horticultural  ,Grounds Maintenance,Services to Place,Policy-Rights Of Way," 6,250.00 ",202030,10088
14/06/2022,ZZH709004,1,15166,NHS Property Services Ltd,150000,Consultancy   ,Professional Fees,Services to Place,Property Client Acct," 203,631.00 ",401020,12328
14/06/2022,ZZH709009,1,13860,Howard Lynn Property Ltd,261400,Human Resources Temporary & Agency Staff ,Agency Staff,Services to Place,Property Client Acct," 7,241.93 ",100290,12328
14/06/2022,ZZH709012,1,10337,SIGNPOST STOCKPORT for CARERS,320000,Social Community Care Supplies & Services  ,Third party payments - Private/Voluntary Sector,Services to People,SC - Signpost," 167,761.00 ",500530,11419
14/06/2022,ZZH709014,1,6748,GEORGE COX & SONS LTD,390000,Supplies and services,Supplies and services,#N/A,#N/A," 8,262.06 ",401600,C.00401
14/06/2022,ZZH709015,1,14236,Coram Voice,261500,Human Resources Training & Conferences ,Fees and Charges,Services to People,CHILDREN PARTCPTN. T," 29,332.86 ",401024,11498
14/06/2022,ZZH709039,1,12719,We Care NW Ltd,320000,Social Community Care Supplies & Services  ,Third party payments - Private/Voluntary Sector,Corporate and Support Services,Com. Invest Fund," 1,250.00 ",402403,12979
14/06/2022,ZZH709039,2,12719,We Care NW Ltd,320000,Social Community Care Supplies & Services  ,Third party payments - Private/Voluntary Sector,Corporate and Support Services,Com. Invest Fund," 1,250.00 ",402403,12979
14/06/2022,ZZH709039,3,12719,We Care NW Ltd,320000,Social Community Care Supplies & Services  ,Third party payments - Private/Voluntary Sector,Corporate and Support Services,Com. Invest Fund," 1,250.00 ",402403,12979
14/06/2022,ZZH709039,4,12719,We Care NW Ltd,320000,Social Community Care Supplies & Services  ,Third party payments - Private/Voluntary Sector,Corporate and Support Services,Com. Invest Fund," 1,250.00 ",402403,12979
14/06/2022,ZZH709039,5,12719,We Care NW Ltd,320000,Social Community Care Supplies & Services  ,Third party payments - Private/Voluntary Sector,Corporate and Support Services,Com. Invest Fund, 900.00 ,402403,12979
14/06/2022,ZZH709039,6,12719,We Care NW Ltd,320000,Social Community Care Supplies & Services  ,Third party payments - Private/Voluntary Sector,Corporate and Support Services,Com. Invest Fund," 1,000.00 ",402403,12979
15/06/2022,ZZH709055,1,3529,Totally Local Company Ltd,390000,Supplies and services,Supplies and services,Services to Place,Berevement Services," 10,534.00 ",401600,11285
15/06/2022,ZZH709079,1,12401,NSL Ltd,381600,Vehicle Management Hire/Leasing ,Leasing /Transport Hire,Services to Place,Moving Traffic," 84,000.00 ",300304,13014
15/06/2022,ZZH709080,1,12401,NSL Ltd,381600,Vehicle Management Hire/Leasing ,Leasing /Transport Hire,Services to Place,Moving Traffic," 24,960.00 ",300304,13014
16/06/2022,ZZH709099,1,4272,Civica UK Ltd,390000,Supplies and services,Supplies and services,Corporate and Support Services,Bentax," 15,000.00 ",401600,11139
16/06/2022,ZZH709107,1,10985,Broadstones School Ltd,261500,Human Resources Training & Conferences ,Fees and Charges,Services to People,SEN Independent Sch," 33,800.00 ",401024,10372
16/06/2022,ZZH709141,1,5214,WSP GROUP PLC,390000,Supplies and services,Supplies and services,#N/A,#N/A," 8,588.00 ",401600,C.01468.201
16/06/2022,ZZH709142,1,8106,Tarmac Trading Ltd,390000,Supplies and services,Supplies and services,#N/A,#N/A," 52,261.94 ",401600,C.01320.203
16/06/2022,ZZH709143,1,11058,Stockport Town Centre Business,390000,Supplies and services,Supplies and services,#N/A,#N/A," 20,000.00 ",401600,C.01542.201
16/06/2022,ZZH709163,1,10716,Pure Insight 1628 Ltd,150000,Consultancy   ,Professional Fees,Services to People,SC - Leaving Care," 95,395.00 ",401020,11501
17/06/2022,ZZH709176,1,8106,Tarmac Trading Ltd,390000,Supplies and services,Supplies and services,#N/A,#N/A," 21,373.83 ",401600,C.01319.203
17/06/2022,ZZH709190,1,12384,Synergy Stockport,320000,Social Community Care Supplies & Services  ,Third party payments - Private/Voluntary Sector,Corporate and Support Services,Com. Invest Fund," 2,500.00 ",402403,12979
17/06/2022,ZZH709190,2,12384,Synergy Stockport,320000,Social Community Care Supplies & Services  ,Third party payments - Private/Voluntary Sector,Corporate and Support Services,Com. Invest Fund," 2,500.00 ",402403,12979
17/06/2022,ZZH709190,3,12384,Synergy Stockport,320000,Social Community Care Supplies & Services  ,Third party payments - Private/Voluntary Sector,Corporate and Support Services,Com. Invest Fund," 2,500.00 ",402403,12979
17/06/2022,ZZH709190,4,12384,Synergy Stockport,320000,Social Community Care Supplies & Services  ,Third party payments - Private/Voluntary Sector,Corporate and Support Services,Com. Invest Fund," 2,500.00 ",402403,12979
17/06/2022,ZZH709190,5,12384,Synergy Stockport,320000,Social Community Care Supplies & Services  ,Third party payments - Private/Voluntary Sector,Corporate and Support Services,Com. Invest Fund, 900.00 ,402403,12979
17/06/2022,ZZH709190,6,12384,Synergy Stockport,320000,Social Community Care Supplies & Services  ,Third party payments - Private/Voluntary Sector,Corporate and Support Services,Com. Invest Fund," 1,000.00 ",402403,12979
17/06/2022,ZZH709201,1,3529,Totally Local Company Ltd,390000,Supplies and services,Supplies and services,Services to Place,Climate Change Now," 13,275.00 ",401600,13112
20/06/2022,ZZH709222,1,1644,Tameside MBC,270000,Information Communication Technology  ,Information and Communications Technology,Corporate and Support Services,IT Main," 7,650.00 ",402004,11073
20/06/2022,ZZH709229,1,15170,The Veterans Food Co,320000,Social Community Care Supplies & Services  ,Third party payments - Private/Voluntary Sector,Corporate and Support Services,Com. Invest Fund," 2,250.00 ",402403,12979
20/06/2022,ZZH709229,2,15170,The Veterans Food Co,320000,Social Community Care Supplies & Services  ,Third party payments - Private/Voluntary Sector,Corporate and Support Services,Com. Invest Fund," 2,250.00 ",402403,12979
20/06/2022,ZZH709229,3,15170,The Veterans Food Co,320000,Social Community Care Supplies & Services  ,Third party payments - Private/Voluntary Sector,Corporate and Support Services,Com. Invest Fund," 2,250.00 ",402403,12979
20/06/2022,ZZH709229,4,15170,The Veterans Food Co,320000,Social Community Care Supplies & Services  ,Third party payments - Private/Voluntary Sector,Corporate and Support Services,Com. Invest Fund," 2,250.00 ",402403,12979
20/06/2022,ZZH709230,1,12384,Synergy Stockport,320000,Social Community Care Supplies & Services  ,Third party payments - Private/Voluntary Sector,Corporate and Support Services,Com. Invest Fund," 1,750.00 ",402403,12979
20/06/2022,ZZH709230,2,12384,Synergy Stockport,320000,Social Community Care Supplies & Services  ,Third party payments - Private/Voluntary Sector,Corporate and Support Services,Com. Invest Fund," 1,750.00 ",402403,12979
20/06/2022,ZZH709230,3,12384,Synergy Stockport,320000,Social Community Care Supplies & Services  ,Third party payments - Private/Voluntary Sector,Corporate and Support Services,Com. Invest Fund," 1,750.00 ",402403,12979
20/06/2022,ZZH709230,4,12384,Synergy Stockport,320000,Social Community Care Supplies & Services  ,Third party payments - Private/Voluntary Sector,Corporate and Support Services,Com. Invest Fund," 1,750.00 ",402403,12979
20/06/2022,ZZH709230,5,12384,Synergy Stockport,320000,Social Community Care Supplies & Services  ,Third party payments - Private/Voluntary Sector,Corporate and Support Services,Com. Invest Fund, 900.00 ,402403,12979
20/06/2022,ZZH709230,6,12384,Synergy Stockport,320000,Social Community Care Supplies & Services  ,Third party payments - Private/Voluntary Sector,Corporate and Support Services,Com. Invest Fund," 1,000.00 ",402403,12979
20/06/2022,ZZH709253,1,9882,General Utilities Northwest,390000,Supplies and services,Supplies and services,Services to Place,Rechargeable work," 6,925.00 ",401600,11961
20/06/2022,ZZH709254,1,8018,STOCKPORT COUNTY COMMUNITY FOU,290000,Arts & Leisure Services  ,Publicity and Promotion,Services to People,GMCA CS Grant," 10,902.00 ",401801,11505
21/06/2022,ZZH709259,1,6067,Pitchworks Ltd,240000,Horticultural  ,Grounds Maintenance,Services to Place,Play," 10,662.60 ",202032,11267
21/06/2022,ZZH709260,1,3529,Totally Local Company Ltd,390000,Supplies and services,Supplies and services,#N/A,#N/A," 11,113.00 ",401600,C.00658
21/06/2022,ZZH709267,1,757,Transport for Greater Manchest,150000,Consultancy   ,Professional Fees,#N/A,#N/A," 17,400.00 ",401007,C.01483.201
21/06/2022,ZZH709270,1,12401,NSL Ltd,381600,Vehicle Management Hire/Leasing ,Leasing /Transport Hire,Services to Place,Moving Traffic," 300,000.00 ",300304,13014
21/06/2022,ZZH709271,1,12401,NSL Ltd,381600,Vehicle Management Hire/Leasing ,Leasing /Transport Hire,Services to Place,Moving Traffic," 110,000.00 ",300304,13014
21/06/2022,ZZH709284,1,15213,Stopford Information Systems L,270000,Information Communication Technology  ,Information and Communications Technology,Corporate and Support Services,"Registrars B, D & M"," 53,950.00 ",402001,11295
21/06/2022,ZZH709286,1,10781,Gazprom Energy,370000,Utilities   ,Utilities,Services to People,Brinnigton CC," 18,000.00 ",200550,12295
22/06/2022,ZZH709308,1,12384,Synergy Stockport,320000,Social Community Care Supplies & Services  ,Third party payments - Private/Voluntary Sector,Corporate and Support Services,Com. Invest Fund," 1,250.00 ",402403,12979
22/06/2022,ZZH709308,2,12384,Synergy Stockport,320000,Social Community Care Supplies & Services  ,Third party payments - Private/Voluntary Sector,Corporate and Support Services,Com. Invest Fund," 1,250.00 ",402403,12979
22/06/2022,ZZH709308,3,12384,Synergy Stockport,320000,Social Community Care Supplies & Services  ,Third party payments - Private/Voluntary Sector,Corporate and Support Services,Com. Invest Fund," 1,250.00 ",402403,12979
22/06/2022,ZZH709308,4,12384,Synergy Stockport,320000,Social Community Care Supplies & Services  ,Third party payments - Private/Voluntary Sector,Corporate and Support Services,Com. Invest Fund," 1,250.00 ",402403,12979
22/06/2022,ZZH709308,5,12384,Synergy Stockport,320000,Social Community Care Supplies & Services  ,Third party payments - Private/Voluntary Sector,Corporate and Support Services,Com. Invest Fund, 900.00 ,402403,12979
22/06/2022,ZZH709308,6,12384,Synergy Stockport,320000,Social Community Care Supplies & Services  ,Third party payments - Private/Voluntary Sector,Corporate and Support Services,Com. Invest Fund," 1,000.00 ",402403,12979
22/06/2022,ZZH709341,1,9547,TOTAL GAS & POWER LTD,370000,Utilities   ,Utilities,Services to People,Brinnigton CC," 18,000.00 ",200510,12295
22/06/2022,ZZH709343,1,14806,Anglian Water Business (Nation,370000,Utilities   ,Utilities,Services to People,Brinnigton CC," 18,000.00 ",200550,12295
22/06/2022,ZZH709347,1,4105,QA Ltd,260000,Human Resources  ,Staff Training,Corporate and Support Services,POD Workforce Dev," 10,000.00 ",102020,11888
22/06/2022,ZZH709366,1,10781,Gazprom Energy,370000,Utilities   ,Utilities,Services to People,Brinnigton CC," 18,000.00 ",200530,12295
23/06/2022,ZZH709374,1,3529,Totally Local Company Ltd,130000,Cleaning & Janitorial  ,Cleaning,Services to People,EHP CC Abacus," 17,182.56 ",201602,10844
23/06/2022,ZZH709404,1,13974,ADDLESHAW GODDARD,280000,Legal Services  ,Legal Fees,#N/A,#N/A," 14,662.62 ",401016,C.10997.002
23/06/2022,ZZH709405,1,13974,ADDLESHAW GODDARD,280000,Legal Services  ,Legal Fees,#N/A,#N/A," 10,569.00 ",401016,C.10997.002
24/06/2022,ZZH709433,1,14225,Midland Software Ltd,270000,Information Communication Technology  ,Information and Communications Technology,Corporate and Support Services,POD Switch," 318,909.02 ",402001,12593
24/06/2022,ZZH709435,1,15212,Stockport Music Project (TA ST,320000,Social Community Care Supplies & Services  ,Third party payments - Private/Voluntary Sector,Corporate and Support Services,Com. Invest Fund," 5,000.00 ",402403,12979
24/06/2022,ZZH709435,2,15212,Stockport Music Project (TA ST,320000,Social Community Care Supplies & Services  ,Third party payments - Private/Voluntary Sector,Corporate and Support Services,Com. Invest Fund," 5,000.00 ",402403,12979
24/06/2022,ZZH709466,1,1427,Stagecoach Services Ltd,261600,Human Resources Travel & Subsistence ,Travelling Expenses,Corporate and Support Services (Tech),Corporate Contingenc," 45,000.00 ",300500,10977
27/06/2022,ZZH709508,1,7202,Quadient UK Ltd,181800,Environmental Services Technical Equipment ,Furniture and Equipment,Corporate and Support Services,Mailroom Service," 8,557.06 ",400113,11152
27/06/2022,ZZH709510,1,9456,Grange School,170000,Education  ,Third party payments - Public Sector,Services to People,OLA pupils," 11,000.00 ",500304,10371
27/06/2022,ZZH709511,1,9456,Grange School,170000,Education  ,Third party payments - Public Sector,Services to People,OLA pupils," 11,000.00 ",500304,10371
27/06/2022,ZZH709512,1,14243,Keys PCE Ltd,261500,Human Resources Training & Conferences ,Fees and Charges,Services to People,SEN Independent Sch," 40,339.00 ",401024,10372
27/06/2022,ZZH709522,1,15208,Plymouth Grove Primary School,170000,Education  ,Third party payments - Public Sector,Services to People,OLA pupils," 14,300.00 ",500304,10371
27/06/2022,ZZH709534,1,14289,Reveal Media Ltd,270000,Information Communication Technology  ,Information and Communications Technology,Services to Place,Car Parks Admin," 2,880.00 ",402010,10005
27/06/2022,ZZH709534,2,14289,Reveal Media Ltd,270000,Information Communication Technology  ,Information and Communications Technology,Services to Place,Car Parks Admin," 2,880.00 ",402010,10005
27/06/2022,ZZH709540,1,6116,Atkins Limited,150000,Consultancy   ,Professional Fees,Services to Place,Feasibility," 23,889.60 ",401020,13062
27/06/2022,ZZH709549,1,3529,Totally Local Company Ltd,390000,"Works - Construction, Repair & Maintenance  ",Capital Expenditure - Works,#N/A,#N/A," 28,809.52 ",200304,C.01284.203
27/06/2022,ZZH709566,1,10926,Inform CPI Ltd,150000,Consultancy   ,Professional Fees,Corporate and Support Services,Bentax," 5,000.00 ",401020,11139
27/06/2022,ZZH709577,1,7472,Oldham Council,261500,Human Resources Training & Conferences ,Fees and Charges,Corporate and Support Services,POD Core Staffing," 7,448.00 ",401024,12590
27/06/2022,ZZH709585,1,7025,CBRE Limited,150000,Consultancy   ,Professional Fees,Services to Place,Town Centre Devt Tea," 43,480.00 ",401020,10072
28/06/2022,ZZH709594,1,14659,Alder King LLP,150000,Consultancy   ,Professional Fees,Services to Place,Local Plan Project," 14,771.00 ",401007,12936
28/06/2022,ZZH709595,1,757,Transport for Greater Manchest,150000,Consultancy   ,Professional Fees,Services to Place,Local Plan Project," 70,050.00 ",401007,12936
28/06/2022,ZZH709597,1,7362,The Heatons Conference Centre,190000,Facilities & Management Services  ,Office Expenses,Services to People,SG - Safegrdg in Ed," 4,000.00 ",400705,11422
28/06/2022,ZZH709597,2,7362,The Heatons Conference Centre,110000,Catering  ,Office Expenses,Services to People,SG - Safegrdg in Ed," 6,000.00 ",400713,11422
28/06/2022,ZZH709613,1,1799,Stockport Homes,192200,Facilities & Management Services Security ,Security,Services to Place,CCTV-Control," 351,178.00 ",201204,12822
28/06/2022,ZZH709622,1,1167,ACC Security Solutions,390000,"Works - Construction, Repair & Maintenance  ",Repairs and Maintenance,Services to Place,Contin Educ Service," 7,753.37 ",200160,10511
28/06/2022,ZZH709632,1,3529,Totally Local Company Ltd,390000,"Works - Construction, Repair & Maintenance  ",Repairs and Maintenance,Services to Place,Car Park Maintenance," 12,935.00 ",200123,12510
29/06/2022,ZZH709654,1,9957,Marketing Stockport,150000,Consultancy   ,Professional Fees,Services to Place,MDC Mayoral DC," 12,250.00 ",401007,13033
29/06/2022,ZZH709665,1,1799,Stockport Homes,270000,Information Communication Technology  ,Information and Communications Technology,Corporate and Support Services,KickStart Programme," 10,000.00 ",402001,13153
29/06/2022,ZZH709666,1,7861,Stockport District CAB,150000,Consultancy   ,Professional Fees,Corporate and Support Services,"Info, Advice & Guide"," 290,000.00 ",401020,13006
29/06/2022,ZZH709675,1,15223,Review Consulting Ltd,150000,Consultancy   ,Professional Fees,Services to People,SG - Child Prot-Lscb," 5,818.00 ",401020,11424
29/06/2022,ZZH709684,1,14399,The Cherry Tree Project,320000,Social Community Care Supplies & Services  ,Third party payments - Private/Voluntary Sector,Services to People,Holiday Activities," 7,560.00 ",402403,13100
29/06/2022,ZZH709685,1,8163,Starting Point Community Learn,320000,Social Community Care Supplies & Services  ,Third party payments - Private/Voluntary Sector,Services to People,Holiday Activities," 5,488.00 ",402403,13100
29/06/2022,ZZH709686,1,14603,Sports Cool Cheshire,320000,Social Community Care Supplies & Services  ,Third party payments - Private/Voluntary Sector,Services to People,Holiday Activities," 8,832.00 ",402403,13100
29/06/2022,ZZH709687,1,14603,Sports Cool Cheshire,320000,Social Community Care Supplies & Services  ,Third party payments - Private/Voluntary Sector,Services to People,Holiday Activities," 16,128.00 ",402403,13100
29/06/2022,ZZH709688,1,9633,Ebony & Ivory Community Organi,320000,Social Community Care Supplies & Services  ,Third party payments - Private/Voluntary Sector,Services to People,Holiday Activities," 8,400.00 ",402403,13100
29/06/2022,ZZH709689,1,15111,Active Communities Experiences,320000,Social Community Care Supplies & Services  ,Third party payments - Private/Voluntary Sector,Services to People,Holiday Activities," 48,983.20 ",402403,13100
30/06/2022,ZZH709710,1,270,Manchester Met University,150000,Consultancy   ,Professional Fees,Services to Place,Town Centre Devt Tea," 28,000.00 ",401007,10072
30/06/2022,ZZH709715,1,13974,ADDLESHAW GODDARD,280000,Legal Services  ,Legal Fees,#N/A,#N/A," 3,674.66 ",401016,C.00658
30/06/2022,ZZH709715,2,13974,ADDLESHAW GODDARD,280000,Legal Services  ,Legal Fees,#N/A,#N/A," 14,662.62 ",401016,C.00658
30/06/2022,ZZH709715,3,13974,ADDLESHAW GODDARD,280000,Legal Services  ,Legal Fees,#N/A,#N/A," 2,621.79 ",401016,C.00658
30/06/2022,ZZH709715,4,13974,ADDLESHAW GODDARD,280000,Legal Services  ,Legal Fees,#N/A,#N/A," 3,674.66 ",401016,C.00658
30/06/2022,ZZH709717,1,7802,Craemer UK Ltd,182020,Environmental Services Waste Management,Waste Management Equipment,Services to Place,Wheelie Bins," 15,645.00 ",400401,10864
30/06/2022,ZZH709717,2,7802,Craemer UK Ltd,182020,Environmental Services Waste Management,Waste Management Equipment,Services to Place,Wheelie Bins," 15,561.00 ",400401,10864
30/06/2022,ZZH709736,1,15214,Clearcare Solutions Ltd,999999,Fees and Charges,Fees and Charges,Services to People,Broadfields 16+ Unit, 332.00 ,401035,12977
30/06/2022,ZZH709736,1,15214,Clearcare Solutions Ltd,999999,Fees and Charges,Fees and Charges,Services to People,SC - Broadfield, 834.00 ,401035,11443
30/06/2022,ZZH709736,1,15214,Clearcare Solutions Ltd,999999,Fees and Charges,Fees and Charges,Services to People,SC - Dial Park, 834.00 ,401035,11447
30/06/2022,ZZH709736,2,15214,Clearcare Solutions Ltd,999999,Fees and Charges,Fees and Charges,Services to People,Broadfields 16+ Unit, 697.20 ,401035,12977
30/06/2022,ZZH709736,2,15214,Clearcare Solutions Ltd,999999,Fees and Charges,Fees and Charges,Services to People,SC - Broadfield," 1,751.40 ",401035,11443
30/06/2022,ZZH709736,2,15214,Clearcare Solutions Ltd,999999,Fees and Charges,Fees and Charges,Services to People,SC - Dial Park," 1,751.40 ",401035,11447
30/06/2022,ZZH709745,1,296,Johns Newsagents,171113,Education Library Books ,Library Equipment,Corporate and Support Services,Library Dev & Res," 6,600.00 ",400206,11328
20/06/2022,ZZS709213,1,4272,Civica UK Ltd,999999,Social Community Care Supplies & Services  ,Service Contract Payments,Corporate and Support Services,U-Coroners Ct-Genera," 6,375.00 ",561704,10965
